Workbook

Sheet TOT-0316
B2: ANEXO IV al Memorándum D.T.E.E. N° 243/ 2017
A4: ENTE NACIONAL REGULADOR
A5: DE LA ELECTRICIDAD
B7: PRESTADOR DE LA FUNCIÓN TÉCNICA DE TRANSPORTE DE ENERGÍA ELÉCTRICA
B9: TRANSBA S.A.
B11: TOTAL DE PENALIZACIONES A APLICAR
B13: 1 | C13: FALSE
B14: Desde el 01 al 31 de Marzo de 2016
B16: Sanciones duplicadas por tasa de falla > 4 Sal. x año/100km.
C18: 1.- | D18: LÍNEAS | I18: ='LI-03 (5)'!AC42 -> 652417.33
C20: 2.- | D20: CONEXIÓN
D22: 2.1.- | E22: Transformación | I22: ='T-03 (3)'!AC43 -> 23453.04
D24: 2.2.- | E24: Salidas | I24: ='SA-03 (3)'!V43 -> 12425.26
C26: 3.- | D26: Equipamiento propio Res. 01_03 | I26: ='RE-03 (1)'!AD44 -> 170.93
F29: TOTAL | G29: =ROUND(SUM(I18:I27),2) -> 688466.56
C31: Valores remuneratorios según Acuerdo SEE-ENRE-TRANSBA - 2016-2017

Sheet LI-03 (1)
B2: =+'TOT-0316'!B2 -> ANEXO IV al Memorándum D.T.E.E. N° 243/ 2017
A4: ENTE NACIONAL REGULADOR
A5: DE LA ELECTRICIDAD
F8: SISTEMA DE TRANSPORTE DE ENERGÍA ELÉCTRICA POR DISTRIBUCIÓN TRONCAL - TRANSBA S.A.
F10: 1.- LÍNEAS
B12: =+'TOT-0316'!B14 -> Desde el 01 al 31 de Marzo de 2016
F14: $/100 km-h : LÍNEAS 220 kV | G14: 392.94 | L14: FACTOR DE PENALIZACIÓN (CLASE A) K= | M14: =150*'TOT-0316'!B13 -> 150 | N14: =IF(M14=150," ",IF(M14=300,"Coeficiente duplicado por tasa de falla >4 Sal. x año/100 km.","REVISAR COEFICIENTE")) -> 
F15: $/100 km-h : LÍNEAS 132 kV | G15: 375.48 | L15: FACTOR DE PENALIZACIÓN (CLASE B) K= | M15: =50*'TOT-0316'!B13 -> 50 | N15: =IF(M15=50," ",IF(M15=100,"Coeficiente duplicado por tasa de falla >4 Sal. x año/100 km.","REVISAR COEFICIENTE")) -> 
F16: $/100 km-h : LÍNEAS 66 kV | G16: 375.48 | L16: FACTOR DE PENALIZACIÓN (CLASE C) K= | M16: =10*'TOT-0316'!B13 -> 10 | N16: =IF(M16=10," ",IF(M16=20,"Coeficiente duplicado por tasa de falla >4 Sal. x año/100 km.","REVISAR COEFICIENTE")) -> 
C17: 3 | D17: 4 | E17: 5 | F17: 6 | G17: 7 | H17: 8 | I17: 9 | J17: 10 | K17: 11 | L17: 12 | M17: 13 | N17: 14 | O17: 15 | P17: 16 | Q17: 17 | R17: 18 | S17: 19 | T17: 20 | U17: 21 | V17: 22 | W17: 23 | X17: 24 | Y17: 25 | Z17: 26 | AA17: 27 | AB17: 28 | AC17: 29
C18: N° | D18: INDISP | E18: ID EQUIPO | F18: LÍNEAS | G18: U [kV] | H18: Long. [km] | I18: CLASE | J18: $/h | K18: Salida | L18: Entrada | M18: Hs. Indisp | N18: Minutos Indisp. | O18: Tipo Sal.(²) | P18: C.R. % | Q18: K (CLASE) | R18: PENALIZ. PROGRAM. | S18: REDUCC. PROGRAM. | T18: PENALIZACIÓN FORZADA Por Salida 1ras. 3 hs. hs. Restantes | W18: REDUCC. FORZADA Por Salida 1ras. 3 hs. hs. Restantes | Z18: RESTANTE FORZADA | AA18: REDUCC. RESTANTE | AB18: Informó en Térm. | AC18: TOTAL PENALIZAC.
C21: 1 | D21: 299941 | E21: 2616 | F21: PIGUE - GUATRACHE | G21: 132 | H21: 102 | I21: C | J21: =IF(G21=220,$G$14,IF(G21=132,$G$15,$G$16))*IF(H21>25,H21,25)/100 -> 382.9896 | K21: 2016-03-01T08:26:00 | L21: 2016-03-01T17:25:00 | M21: =IF(F21="","",(L21-K21)*24) -> 8.983333333 | N21: =IF(F21="","",ROUND((L21-K21)*24*60,0)) -> 539 | O21: P | P21: 0,000 | Q21: =IF(I21="A",$M$14,IF(I21="B",$M$15,$M$16)) -> 10 | R21: =IF(O21="P",ROUND(N21/60,2)*J21*Q21*0.01,"--") -> 343.9246608 | S21: =IF(O21="RP",ROUND(N21/60,2)*J21*Q21*0.01*P21/100,"--") -> -- | T21: =IF(O21="F",J21*Q21,"--") -> -- | U21: =IF(AND(N21>10,O21="F"),J21*Q21*IF(N21>180,3,ROUND((N21)/60,2)),"--") -> -- | V21: =IF(AND(O21="F",N21>180),(ROUND(N21/60,2)-3)*J21*Q21*0.1,"--") -> -- | W21: =IF(O21="R",J21*Q21*P21/100,"--") -> -- | X21: =IF(AND(N21>10,O21="R"),Q21*J21*P21/100*IF(N21>180,3,ROUND((N21)/60,2)),"--") -> -- | Y21: =IF(AND(O21="R",N21>180),(ROUND(N21/60,2)-3)*J21*Q21*0.1*P21/100,"--") -> -- | Z21: =IF(O21="RF",ROUND(N21/60,2)*J21*Q21*0.1,"--") -> -- | AA21: =IF(O21="RR",ROUND(N21/60,2)*J21*Q21*0.1*P21/100,"--") -> -- | AB21: SI | AC21: =IF(F21="","",SUM(R21:AA21)*IF(AB21="SI",1,2)) -> 343.9246608
C22: 2 | D22: 299943 | E22: 1543 | F22: PUNTA ALTA - BAHIA BLANCA | G22: 132 | H22: 24.10000038 | I22: C | J22: 93.87 | K22: 2016-03-01T10:41:00 | L22: 2016-03-01T17:06:00 | M22: 6.416666667 | N22: 385 | O22: P | P22: 0,000 | Q22: 10 | R22: 60.26454 | S22: -- | T22: -- | U22: -- | V22: -- | W22: -- | X22: -- | Y22: -- | Z22: -- | AA22: -- | AB22: SI | AC22: 0
C23: 3 | D23: 299944 | E23: 1407 | F23: SALADILLO - LAS FLORES | G23: 132 | H23: 76.30000305 | I23: C | J23: 286.4912515 | K23: 2016-03-01T10:58:00 | L23: 2016-03-01T14:36:00 | M23: 3.633333333 | N23: 218 | O23: P | P23: 0,000 | Q23: 10 | R23: 103.9963243 | S23: -- | T23: -- | U23: -- | V23: -- | W23: -- | X23: -- | Y23: -- | Z23: -- | AA23: -- | AB23: SI | AC23: 103.9963243
C24: 4 | D24: 299945 | E24: 2616 | F24: PIGUE - GUATRACHE | G24: 132 | H24: 102 | I24: C | J24: 382.9896 | K24: 2016-03-02T08:27:00 | L24: 2016-03-02T17:16:00 | M24: 8.816666667 | N24: 529 | O24: P | P24: 0,000 | Q24: 10 | R24: 337.7968272 | S24: -- | T24: -- | U24: -- | V24: -- | W24: -- | X24: -- | Y24: -- | Z24: -- | AA24: -- | AB24: SI | AC24: 337.7968272
C25: 5 | D25: 299946 | E25: 1407 | F25: SALADILLO - LAS FLORES | G25: 132 | H25: 76.30000305 | I25: C | J25: 286.4912515 | K25: 2016-03-02T08:51:00 | L25: 2016-03-02T18:25:00 | M25: 9.566666667 | N25: 574 | O25: P | P25: 0,000 | Q25: 10 | R25: 274.1721276 | S25: -- | T25: -- | U25: -- | V25: -- | W25: -- | X25: -- | Y25: -- | Z25: -- | AA25: -- | AB25: SI | AC25: 274.1721276
C26: 6 | D26: 299947 | E26: 2714 | F26: VILLA LIA "T" - NUEVA CAMPANA | G26: 132 | H26: 35 | I26: C | J26: 131.418 | K26: 2016-03-02T08:56:00 | L26: 2016-03-02T15:33:00 | M26: 6.616666667 | N26: 397 | O26: P | P26: 0,000 | Q26: 10 | R26: 86.998716 | S26: -- | T26: -- | U26: -- | V26: -- | W26: -- | X26: -- | Y26: -- | Z26: -- | AA26: -- | AB26: SI | AC26: 0
C27: 7 | D27: 299949 | E27: 1543 | F27: PUNTA ALTA - BAHIA BLANCA | G27: 132 | H27: 24.10000038 | I27: C | J27: 93.87 | K27: 2016-03-02T09:36:00 | L27: 2016-03-02T17:34:00 | M27: 7.966666667 | N27: 478 | O27: P | P27: 0,000 | Q27: 10 | R27: 74.81439 | S27: -- | T27: -- | U27: -- | V27: -- | W27: -- | X27: -- | Y27: -- | Z27: -- | AA27: -- | AB27: SI | AC27: 74.81439
C28: 8 | D28: 299951 | E28: 1536 | F28: CARLOS CASARES - 9 DE JULIO | G28: 66 | H28: 46.79999924 | I28: C | J28: 175.7246371 | K28: 2016-03-03T07:20:00 | L28: 2016-03-03T09:55:00 | M28: 2.583333333 | N28: 155 | O28: P | P28: 0,000 | Q28: 10 | R28: 45.33695638 | S28: -- | T28: -- | U28: -- | V28: -- | W28: -- | X28: -- | Y28: -- | Z28: -- | AA28: -- | AB28: SI | AC28: 45.33695638
C29: 9 | D29: 299952 | E29: 2616 | F29: PIGUE - GUATRACHE | G29: 132 | H29: 102 | I29: C | J29: 382.9896 | K29: 2016-03-03T08:30:00 | L29: 2016-03-03T17:09:00 | M29: 8.65 | N29: 519 | O29: P | P29: 0,000 | Q29: 10 | R29: 331.286004 | S29: -- | T29: -- | U29: -- | V29: -- | W29: -- | X29: -- | Y29: -- | Z29: -- | AA29: -- | AB29: SI | AC29: 331.286004
C30: 10 | D30: 299955 | E30: 1543 | F30: PUNTA ALTA - BAHIA BLANCA | G30: 132 | H30: 24.10000038 | I30: C | J30: 93.87 | K30: 2016-03-03T09:41:00 | L30: 2016-03-03T17:43:00 | M30: 8.033333333 | N30: 482 | O30: P | P30: 0,000 | Q30: 10 | R30: 75.37761 | S30: -- | T30: -- | U30: -- | V30: -- | W30: -- | X30: -- | Y30: -- | Z30: -- | AA30: -- | AB30: SI | AC30: 75.37761
C31: 11 | D31: 299956 | E31: 1407 | F31: SALADILLO - LAS FLORES | G31: 132 | H31: 76.30000305 | I31: C | J31: 286.4912515 | K31: 2016-03-03T09:59:00 | L31: 2016-03-03T14:31:00 | M31: 4.533333333 | N31: 272 | O31: P | P31: 0,000 | Q31: 10 | R31: 129.7805369 | S31: -- | T31: -- | U31: -- | V31: -- | W31: -- | X31: -- | Y31: -- | Z31: -- | AA31: -- | AB31: SI | AC31: 129.7805369
C32: 12 | D32: 299959 | E32: 2616 | F32: PIGUE - GUATRACHE | G32: 132 | H32: 102 | I32: C | J32: 382.9896 | K32: 2016-03-04T08:24:00 | L32: 2016-03-04T13:48:00 | M32: 5.4 | N32: 324 | O32: P | P32: 0,000 | Q32: 10 | R32: 206.814384 | S32: -- | T32: -- | U32: -- | V32: -- | W32: -- | X32: -- | Y32: -- | Z32: -- | AA32: -- | AB32: SI | AC32: 206.814384
C33: 13 | D33: 299960 | E33: 1543 | F33: PUNTA ALTA - BAHIA BLANCA | G33: 132 | H33: 24.10000038 | I33: C | J33: 93.87 | K33: 2016-03-04T09:04:00 | L33: 2016-03-04T15:50:00 | M33: 6.766666667 | N33: 406 | O33: P | P33: 0,000 | Q33: 10 | R33: 63.54999 | S33: -- | T33: -- | U33: -- | V33: -- | W33: -- | X33: -- | Y33: -- | Z33: -- | AA33: -- | AB33: SI | AC33: 63.54999
C34: 14 | D34: 299971 | E34: 1424 | F34: ZARATE - ATUCHA I | G34: 132 | H34: 22.1 | I34: C | J34: 93.87 | K34: 2016-03-05T09:42:00 | L34: 2016-06-05T20:02:00 | M34: 2218.333333 | N34: 133100 | O34: P | P34: 0,000 | Q34: 10 | R34: 20823.46371 | S34: -- | T34: -- | U34: -- | V34: -- | W34: -- | X34: -- | Y34: -- | Z34: -- | AA34: -- | AB34: SI | AC34: 0
C35: 15 | D35: 299972 | E35: 4328 | F35: MAR DE AJO - MAR DEL TUYU - LAS TONINAS | G35: 132 | H35: 29.56999969 | I35: C | J35: 111.0294349 | K35: 2016-03-05T09:46:00 | L35: 2016-03-05T12:59:00 | M35: 3.216666667 | N35: 193 | O35: P | P35: 0,000 | Q35: 10 | R35: 35.75147802 | S35: -- | T35: -- | U35: -- | V35: -- | W35: -- | X35: -- | Y35: -- | Z35: -- | AA35: -- | AB35: SI | AC35: 35.75147802
C36: 16 | D36: 299974 | E36: 1419 | F36: PERGAMINO - SAN NICOLÁS | G36: 132 | H36: 70.8 | I36: C | J36: 265.83984 | K36: 2016-03-06T07:24:00 | L36: 2016-03-06T12:59:00 | M36: 5.583333333 | N36: 335 | O36: P | P36: 0,000 | Q36: 10 | R36: 148.3386307 | S36: -- | T36: -- | U36: -- | V36: -- | W36: -- | X36: -- | Y36: -- | Z36: -- | AA36: -- | AB36: SI | AC36: 148.3386307
C37: 17 | D37: 299975 | E37: 1402 | F37: TRENQUE LAUQUEN - HENDERSON | G37: 132 | H37: 105.4000015 | I37: A | J37: 395.7559257 | K37: 2016-03-06T07:27:00 | L37: 2016-03-06T17:06:00 | M37: 9.65 | N37: 579 | O37: P | P37: 0,000 | Q37: 150 | R37: 5728.567025 | S37: -- | T37: -- | U37: -- | V37: -- | W37: -- | X37: -- | Y37: -- | Z37: -- | AA37: -- | AB37: SI | AC37: 5728.567025
C38: 18 | D38: 300216 | E38: 1437 | F38: DOLORES - CHASCOMUS | G38: 132 | H38: 90.23000336 | I38: C | J38: 338.7956166 | K38: 2016-03-07T09:16:00 | L38: 2016-03-07T15:08:00 | M38: 5.866666667 | N38: 352 | O38: P | P38: 0,000 | Q38: 10 | R38: 198.8730269 | S38: -- | T38: -- | U38: -- | V38: -- | W38: -- | X38: -- | Y38: -- | Z38: -- | AA38: -- | AB38: SI | AC38: 198.8730269
C39: 19 | D39: 300217 | E39: 1536 | F39: CARLOS CASARES - 9 DE JULIO | G39: 66 | H39: 46.79999924 | I39: C | J39: 175.7246371 | K39: 2016-03-07T09:40:00 | L39: 2016-03-07T15:01:00 | M39: 5.35 | N39: 321 | O39: P | P39: 0,000 | Q39: 10 | R39: 94.01268087 | S39: -- | T39: -- | U39: -- | V39: -- | W39: -- | X39: -- | Y39: -- | Z39: -- | AA39: -- | AB39: SI | AC39: 94.01268087
C42: (²) | D42: P - PROGRAMADA ; F - FORZADA | R42: =SUM(R19:R41) -> 29163.11962 | S42: 0 | T42: 0 | U42: 0 | V42: 0 | W42: 0 | X42: 0 | Y42: 0 | Z42: 0 | AA42: 0 | AC42: =ROUND(SUM(AC19:AC41),2) -> 8192.39

Sheet LI-03 (2)
B2: =+'TOT-0316'!B2 -> ANEXO IV al Memorándum D.T.E.E. N° 243/ 2017
A4: ENTE NACIONAL REGULADOR
A5: DE LA ELECTRICIDAD
F8: SISTEMA DE TRANSPORTE DE ENERGÍA ELÉCTRICA POR DISTRIBUCIÓN TRONCAL - TRANSBA S.A.
F10: 1.- LÍNEAS
B12: =+'TOT-0316'!B14 -> Desde el 01 al 31 de Marzo de 2016
F14: $/100 km-h : LÍNEAS 220 kV | G14: 392.94 | L14: FACTOR DE PENALIZACIÓN (CLASE A) K= | M14: =150*'TOT-0316'!B13 -> 150 | N14: =IF(M14=150," ",IF(M14=300,"Coeficiente duplicado por tasa de falla >4 Sal. x año/100 km.","REVISAR COEFICIENTE")) -> 
F15: $/100 km-h : LÍNEAS 132 kV | G15: 375.48 | L15: FACTOR DE PENALIZACIÓN (CLASE B) K= | M15: =50*'TOT-0316'!B13 -> 50 | N15: =IF(M15=50," ",IF(M15=100,"Coeficiente duplicado por tasa de falla >4 Sal. x año/100 km.","REVISAR COEFICIENTE")) -> 
F16: $/100 km-h : LÍNEAS 66 kV | G16: 375.48 | L16: FACTOR DE PENALIZACIÓN (CLASE C) K= | M16: =10*'TOT-0316'!B13 -> 10 | N16: =IF(M16=10," ",IF(M16=20,"Coeficiente duplicado por tasa de falla >4 Sal. x año/100 km.","REVISAR COEFICIENTE")) -> 
C17: 3 | D17: 4 | E17: 5 | F17: 6 | G17: 7 | H17: 8 | I17: 9 | J17: 10 | K17: 11 | L17: 12 | M17: 13 | N17: 14 | O17: 15 | P17: 16 | Q17: 17 | R17: 18 | S17: 19 | T17: 20 | U17: 21 | V17: 22 | W17: 23 | X17: 24 | Y17: 25 | Z17: 26 | AA17: 27 | AB17: 28 | AC17: 29
C18: N° | D18: INDISP | E18: ID EQUIPO | F18: LÍNEAS | G18: U [kV] | H18: Long. [km] | I18: CLASE | J18: $/h | K18: Salida | L18: Entrada | M18: Hs. Indisp | N18: Minutos Indisp. | O18: Tipo Sal.(²) | P18: C.R. % | Q18: K (CLASE) | R18: PENALIZ. PROGRAM. | S18: REDUCC. PROGRAM. | T18: PENALIZACIÓN FORZADA Por Salida 1ras. 3 hs. hs. Restantes | W18: REDUCC. FORZADA Por Salida 1ras. 3 hs. hs. Restantes | Z18: RESTANTE FORZADA | AA18: REDUCC. RESTANTE | AB18: Informó en Térm. | AC18: TOTAL PENALIZAC.
AC19: ='LI-03 (1)'!AC42 -> 8192.39
C21: 20 | D21: 300218 | E21: 2616 | F21: PIGUE - GUATRACHE | G21: 132 | H21: 102 | I21: C | J21: =IF(G21=220,$G$14,IF(G21=132,$G$15,$G$16))*IF(H21>25,H21,25)/100 -> 382.9896 | K21: 2016-03-07T11:32:00 | L21: 2016-03-07T17:26:00 | M21: =IF(F21="","",(L21-K21)*24) -> 5.9 | N21: =IF(F21="","",ROUND((L21-K21)*24*60,0)) -> 354 | O21: P | P21: 0,000 | Q21: =IF(I21="A",$M$14,IF(I21="B",$M$15,$M$16)) -> 10 | R21: =IF(O21="P",ROUND(N21/60,2)*J21*Q21*0.01,"--") -> 225.963864 | S21: =IF(O21="RP",ROUND(N21/60,2)*J21*Q21*0.01*P21/100,"--") -> -- | T21: =IF(O21="F",J21*Q21,"--") -> -- | U21: =IF(AND(N21>10,O21="F"),J21*Q21*IF(N21>180,3,ROUND((N21)/60,2)),"--") -> -- | V21: =IF(AND(O21="F",N21>180),(ROUND(N21/60,2)-3)*J21*Q21*0.1,"--") -> -- | W21: =IF(O21="R",J21*Q21*P21/100,"--") -> -- | X21: =IF(AND(N21>10,O21="R"),Q21*J21*P21/100*IF(N21>180,3,ROUND((N21)/60,2)),"--") -> -- | Y21: =IF(AND(O21="R",N21>180),(ROUND(N21/60,2)-3)*J21*Q21*0.1*P21/100,"--") -> -- | Z21: =IF(O21="RF",ROUND(N21/60,2)*J21*Q21*0.1,"--") -> -- | AA21: =IF(O21="RR",ROUND(N21/60,2)*J21*Q21*0.1*P21/100,"--") -> -- | AB21: =IF(F21="","","SI") -> SI | AC21: =IF(F21="","",SUM(R21:AA21)*IF(AB21="SI",1,2)) -> 225.963864
C22: 21 | D22: 300220 | E22: 2616 | F22: PIGUE - GUATRACHE | G22: 132 | H22: 102 | I22: C | J22: 382.9896 | K22: 2016-03-08T08:23:00 | L22: 2016-03-08T17:25:00 | M22: 9.033333333 | N22: 542 | O22: P | P22: 0,000 | Q22: 10 | R22: 345.8396088 | S22: -- | T22: -- | U22: -- | V22: -- | W22: -- | X22: -- | Y22: -- | Z22: -- | AA22: -- | AB22: SI | AC22: 345.8396088
C23: 22 | D23: 300221 | E23: 1437 | F23: DOLORES - CHASCOMUS | G23: 132 | H23: 90.23000336 | I23: C | J23: 338.7956166 | K23: 2016-03-08T08:28:00 | L23: 2016-03-08T15:44:00 | M23: 7.266666667 | N23: 436 | O23: P | P23: 0,000 | Q23: 10 | R23: 246.3044133 | S23: -- | T23: -- | U23: -- | V23: -- | W23: -- | X23: -- | Y23: -- | Z23: -- | AA23: -- | AB23: SI | AC23: 246.3044133
C24: 23 | D24: 300222 | E24: 1536 | F24: CARLOS CASARES - 9 DE JULIO | G24: 66 | H24: 46.79999924 | I24: C | J24: 175.7246371 | K24: 2016-03-08T08:49:00 | L24: 2016-03-08T13:28:00 | M24: 4.65 | N24: 279 | O24: P | P24: 0,000 | Q24: 10 | R24: 81.71195627 | S24: -- | T24: -- | U24: -- | V24: -- | W24: -- | X24: -- | Y24: -- | Z24: -- | AA24: -- | AB24: SI | AC24: 81.71195627
C25: 24 | D25: 300225 | E25: 3796 | F25: C. SARMIENTO - S. A. ARECO | G25: 66 | H25: 31.5 | I25: C | J25: 118.2762 | K25: 2016-03-08T09:39:00 | L25: 2016-03-08T15:13:00 | M25: 5.566666667 | N25: 334 | O25: P | P25: 0,000 | Q25: 10 | R25: 65.8798434 | S25: -- | T25: -- | U25: -- | V25: -- | W25: -- | X25: -- | Y25: -- | Z25: -- | AA25: -- | AB25: SI | AC25: 65.8798434
C26: 25 | D26: 300231 | E26: 1437 | F26: DOLORES - CHASCOMUS | G26: 132 | H26: 90.23000336 | I26: C | J26: 338.7956166 | K26: 2016-03-09T08:34:00 | L26: 2016-03-09T15:35:00 | M26: 7.016666667 | N26: 421 | O26: P | P26: 0,000 | Q26: 10 | R26: 237.8345229 | S26: -- | T26: -- | U26: -- | V26: -- | W26: -- | X26: -- | Y26: -- | Z26: -- | AA26: -- | AB26: SI | AC26: 237.8345229
C27: 26 | D27: 300232 | E27: 1421 | F27: ARRECIFES - CAP. SARMIENTO | G27: 66 | H27: 31.89999962 | I27: C | J27: 119.7781186 | K27: 2016-03-09T08:56:00 | L27: 2016-03-09T16:11:00 | M27: 7.25 | N27: 435 | O27: P | P27: 0,000 | Q27: 10 | R27: 86.83913596 | S27: -- | T27: -- | U27: -- | V27: -- | W27: -- | X27: -- | Y27: -- | Z27: -- | AA27: -- | AB27: SI | AC27: 86.83913596
C28: 27 | D28: 300234 | E28: 2616 | F28: PIGUE - GUATRACHE | G28: 132 | H28: 102 | I28: C | J28: 382.9896 | K28: 2016-03-09T09:51:00 | L28: 2016-03-09T16:56:00 | M28: 7.083333333 | N28: 425 | O28: P | P28: 0,000 | Q28: 10 | R28: 271.1566368 | S28: -- | T28: -- | U28: -- | V28: -- | W28: -- | X28: -- | Y28: -- | Z28: -- | AA28: -- | AB28: SI | AC28: 271.1566368
C29: 28 | D29: 300238 | E29: 1531 | F29: BAHIA BLANCA - PRINGLES | G29: 132 | H29: 102.0899963 | I29: C | J29: 383.3275182 | K29: 2016-03-10T08:30:00 | L29: 2016-03-10T17:28:00 | M29: 8.966666667 | N29: 538 | O29: P | P29: 0,000 | Q29: 10 | R29: 343.8447839 | S29: -- | T29: -- | U29: -- | V29: -- | W29: -- | X29: -- | Y29: -- | Z29: -- | AA29: -- | AB29: SI | AC29: 343.8447839
C30: 29 | D30: 300239 | E30: 2616 | F30: PIGUE - GUATRACHE | G30: 132 | H30: 102 | I30: C | J30: 382.9896 | K30: 2016-03-10T08:31:00 | L30: 2016-03-10T17:34:00 | M30: 9.05 | N30: 543 | O30: P | P30: 0,000 | Q30: 10 | R30: 346.605588 | S30: -- | T30: -- | U30: -- | V30: -- | W30: -- | X30: -- | Y30: -- | Z30: -- | AA30: -- | AB30: SI | AC30: 346.605588
C31: 30 | D31: 300241 | E31: 3797 | F31: S. A. ARECO - LUJAN | G31: 66 | H31: 49.79999924 | I31: C | J31: 186.9890371 | K31: 2016-03-10T08:39:00 | L31: 2016-03-10T15:40:00 | M31: 7.016666667 | N31: 421 | O31: P | P31: 0,000 | Q31: 10 | R31: 131.2663041 | S31: -- | T31: -- | U31: -- | V31: -- | W31: -- | X31: -- | Y31: -- | Z31: -- | AA31: -- | AB31: SI | AC31: 131.2663041
C32: 31 | D32: 300242 | E32: 1437 | F32: DOLORES - CHASCOMUS | G32: 132 | H32: 90.23000336 | I32: C | J32: 338.7956166 | K32: 2016-03-10T08:56:00 | L32: 2016-03-10T17:16:00 | M32: 8.333333333 | N32: 500 | O32: P | P32: 0,000 | Q32: 10 | R32: 282.2167486 | S32: -- | T32: -- | U32: -- | V32: -- | W32: -- | X32: -- | Y32: -- | Z32: -- | AA32: -- | AB32: SI | AC32: 282.2167486
C33: 32 | D33: 300243 | E33: 1421 | F33: ARRECIFES - CAP. SARMIENTO | G33: 66 | H33: 31.89999962 | I33: C | J33: 119.7781186 | K33: 2016-03-10T09:06:00 | L33: 2016-03-10T16:13:00 | M33: 7.116666667 | N33: 427 | O33: P | P33: 0,000 | Q33: 10 | R33: 85.28202042 | S33: -- | T33: -- | U33: -- | V33: -- | W33: -- | X33: -- | Y33: -- | Z33: -- | AA33: -- | AB33: SI | AC33: 85.28202042
C34: 33 | D34: 300245 | E34: 1536 | F34: CARLOS CASARES - 9 DE JULIO | G34: 66 | H34: 46.79999924 | I34: C | J34: 175.7246371 | K34: 2016-03-10T09:33:00 | L34: 2016-03-10T15:09:00 | M34: 5.6 | N34: 336 | O34: P | P34: 0,000 | Q34: 10 | R34: 98.4057968 | S34: -- | T34: -- | U34: -- | V34: -- | W34: -- | X34: -- | Y34: -- | Z34: -- | AA34: -- | AB34: SI | AC34: 98.4057968
C35: 34 | D35: 300247 | E35: 4075 | F35: AZUL - CACHARI | G35: 132 | H35: 55.70000076 | I35: C | J35: 209.1423629 | K35: 2016-03-11T05:23:00 | L35: 2016-03-11T09:29:00 | M35: 4.1 | N35: 246 | O35: F | P35: 0,000 | Q35: 10 | R35: -- | S35: -- | T35: 2091.423629 | U35: 6274.270886 | V35: 230.0565992 | W35: -- | X35: -- | Y35: -- | Z35: -- | AA35: -- | AB35: SI | AC35: 8595.751114
C36: 35 | D36: 300248 | E36: 1536 | F36: CARLOS CASARES - 9 DE JULIO | G36: 66 | H36: 46.79999924 | I36: C | J36: 175.7246371 | K36: 2016-03-11T08:20:00 | L36: 2016-03-11T15:23:00 | M36: 7.05 | N36: 423 | O36: P | P36: 0,000 | Q36: =IF(I36="A",$M$14,IF(I36="B",$M$15,$M$16)) -> 10 | R36: =IF(O36="P",ROUND(N36/60,2)*J36*Q36*0.01,"--") -> 123.8858692 | S36: =IF(O36="RP",ROUND(N36/60,2)*J36*Q36*0.01*P36/100,"--") -> -- | T36: =IF(O36="F",J36*Q36,"--") -> -- | U36: =IF(AND(N36>10,O36="F"),J36*Q36*IF(N36>180,3,ROUND((N36)/60,2)),"--") -> -- | V36: =IF(AND(O36="F",N36>180),(ROUND(N36/60,2)-3)*J36*Q36*0.1,"--") -> -- | W36: =IF(O36="R",J36*Q36*P36/100,"--") -> -- | X36: =IF(AND(N36>10,O36="R"),Q36*J36*P36/100*IF(N36>180,3,ROUND((N36)/60,2)),"--") -> -- | Y36: =IF(AND(O36="R",N36>180),(ROUND(N36/60,2)-3)*J36*Q36*0.1*P36/100,"--") -> -- | Z36: =IF(O36="RF",ROUND(N36/60,2)*J36*Q36*0.1,"--") -> -- | AA36: =IF(O36="RR",ROUND(N36/60,2)*J36*Q36*0.1*P36/100,"--") -> -- | AB36: =IF(F36="","","SI") -> SI | AC36: 123.8858692
C37: 36 | D37: 300250 | E37: 1441 | F37: PERGAMINO - ARRECIFES | G37: 66 | H37: 43.8 | I37: B | J37: 164.46024 | K37: 2016-03-11T08:51:00 | L37: 2016-03-11T14:31:00 | M37: 5.666666667 | N37: 340 | O37: P | P37: 0,000 | Q37: 50 | R37: 466.2447804 | S37: -- | T37: -- | U37: -- | V37: -- | W37: -- | X37: -- | Y37: -- | Z37: -- | AA37: -- | AB37: SI | AC37: 466.2447804
C38: 37 | D38: 300251 | E38: 2616 | F38: PIGUE - GUATRACHE | G38: 132 | H38: 102 | I38: C | J38: 382.9896 | K38: 2016-03-11T08:56:00 | L38: 2016-03-11T16:47:00 | M38: 7.85 | N38: 471 | O38: P | P38: 0,000 | Q38: 10 | R38: 300.646836 | S38: -- | T38: -- | U38: -- | V38: -- | W38: -- | X38: -- | Y38: -- | Z38: -- | AA38: -- | AB38: SI | AC38: 300.646836
C39: 38 | D39: 300254 | E39: 1437 | F39: DOLORES - CHASCOMUS | G39: 132 | H39: 90.23000336 | I39: C | J39: 338.7956166 | K39: 2016-03-11T09:40:00 | L39: 2016-03-11T15:01:00 | M39: 5.35 | N39: 321 | O39: P | P39: 0,000 | Q39: 10 | R39: 181.2556549 | S39: -- | T39: -- | U39: -- | V39: -- | W39: -- | X39: -- | Y39: -- | Z39: -- | AA39: -- | AB39: SI | AC39: 181.2556549
J40: 93.87 | P40: =IF(F40="","","--") ->  | Q40: 10 | R40: -- | S40: -- | T40: -- | U40: -- | V40: -- | W40: -- | X40: -- | Y40: -- | Z40: -- | AA40: -- | AB40: =IF(F40="","","SI") -> 
C42: (²) | D42: P - PROGRAMADA ; F - FORZADA | R42: =SUM(R19:R41) -> 3921.184364 | S42: 0 | T42: 2091.423629 | U42: 6274.270886 | V42: 230.0565992 | W42: 0 | X42: 0 | Y42: 0 | Z42: 0 | AA42: 0 | AC42: =ROUND(SUM(AC19:AC41),2) -> 20709.33

Sheet LI-03 (3)
B2: ='TOT-0316'!B2 -> ANEXO IV al Memorándum D.T.E.E. N° 243/ 2017
A4: ENTE NACIONAL REGULADOR
A5: DE LA ELECTRICIDAD
F8: SISTEMA DE TRANSPORTE DE ENERGÍA ELÉCTRICA POR DISTRIBUCIÓN TRONCAL - TRANSBA S.A.
F10: 1.- LÍNEAS
B12: =+'TOT-0316'!B14 -> Desde el 01 al 31 de Marzo de 2016
F14: $/100 km-h : LÍNEAS 220 kV | G14: 392.94 | L14: FACTOR DE PENALIZACIÓN (CLASE A) K= | M14: =150*'TOT-0316'!B13 -> 150 | N14: =IF(M14=150," ",IF(M14=300,"Coeficiente duplicado por tasa de falla >4 Sal. x año/100 km.","REVISAR COEFICIENTE")) -> 
F15: $/100 km-h : LÍNEAS 132 kV | G15: 375.48 | L15: FACTOR DE PENALIZACIÓN (CLASE B) K= | M15: =50*'TOT-0316'!B13 -> 50 | N15: =IF(M15=50," ",IF(M15=100,"Coeficiente duplicado por tasa de falla >4 Sal. x año/100 km.","REVISAR COEFICIENTE")) -> 
F16: $/100 km-h : LÍNEAS 66 kV | G16: 375.48 | L16: FACTOR DE PENALIZACIÓN (CLASE C) K= | M16: =10*'TOT-0316'!B13 -> 10 | N16: =IF(M16=10," ",IF(M16=20,"Coeficiente duplicado por tasa de falla >4 Sal. x año/100 km.","REVISAR COEFICIENTE")) -> 
C17: 3 | D17: 4 | E17: 5 | F17: 6 | G17: 7 | H17: 8 | I17: 9 | J17: 10 | K17: 11 | L17: 12 | M17: 13 | N17: 14 | O17: 15 | P17: 16 | Q17: 17 | R17: 18 | S17: 19 | T17: 20 | U17: 21 | V17: 22 | W17: 23 | X17: 24 | Y17: 25 | Z17: 26 | AA17: 27 | AB17: 28 | AC17: 29
C18: N° | D18: INDISP | E18: ID EQUIPO | F18: LÍNEAS | G18: U [kV] | H18: Long. [km] | I18: CLASE | J18: $/h | K18: Salida | L18: Entrada | M18: Hs. Indisp | N18: Minutos Indisp. | O18: Tipo Sal.(²) | P18: C.R. % | Q18: K (CLASE) | R18: PENALIZ. PROGRAM. | S18: REDUCC. PROGRAM. | T18: PENALIZACIÓN FORZADA Por Salida 1ras. 3 hs. hs. Restantes | W18: REDUCC. FORZADA Por Salida 1ras. 3 hs. hs. Restantes | Z18: RESTANTE FORZADA | AA18: REDUCC. RESTANTE | AB18: Informó en Térm. | AC18: TOTAL PENALIZAC.
AC19: ='LI-03 (2)'!AC42 -> 20709.33
C21: 39 | D21: 300258 | E21: 1450 | F21: OLAVARRIA - AZUL | G21: 132 | H21: 51.40000153 | I21: C | J21: =IF(G21=220,$G$14,IF(G21=132,$G$15,$G$16))*IF(H21>25,H21,25)/100 -> 192.9967257 | K21: 2016-03-12T08:15:00 | L21: 2016-03-12T15:41:00 | M21: =IF(F21="","",(L21-K21)*24) -> 7.433333333 | N21: =IF(F21="","",ROUND((L21-K21)*24*60,0)) -> 446 | O21: P | P21: 0,000 | Q21: =IF(I21="A",$M$14,IF(I21="B",$M$15,$M$16)) -> 10 | R21: =IF(O21="P",ROUND(N21/60,2)*J21*Q21*0.01,"--") -> 143.3965672 | S21: =IF(O21="RP",ROUND(N21/60,2)*J21*Q21*0.01*P21/100,"--") -> -- | T21: =IF(O21="F",J21*Q21,"--") -> -- | U21: =IF(AND(N21>10,O21="F"),J21*Q21*IF(N21>180,3,ROUND((N21)/60,2)),"--") -> -- | V21: =IF(AND(O21="F",N21>180),(ROUND(N21/60,2)-3)*J21*Q21*0.1,"--") -> -- | W21: =IF(O21="R",J21*Q21*P21/100,"--") -> -- | X21: =IF(AND(N21>10,O21="R"),Q21*J21*P21/100*IF(N21>180,3,ROUND((N21)/60,2)),"--") -> -- | Y21: =IF(AND(O21="R",N21>180),(ROUND(N21/60,2)-3)*J21*Q21*0.1*P21/100,"--") -> -- | Z21: =IF(O21="RF",ROUND(N21/60,2)*J21*Q21*0.1,"--") -> -- | AA21: =IF(O21="RR",ROUND(N21/60,2)*J21*Q21*0.1*P21/100,"--") -> -- | AB21: SI | AC21: =IF(F21="","",SUM(R21:AA21)*IF(AB21="SI",1,2)) -> 143.3965672
C22: 40 | D22: 300259 | E22: 5684 | F22: CORCEMAR - TOYOTA | G22: 132 | H22: 2.9 | I22: C | J22: 93.87 | K22: 2016-03-12T08:23:00 | L22: 2016-03-12T17:43:00 | M22: 9.333333333 | N22: 560 | O22: P | P22: 0,000 | Q22: 10 | R22: 87.58071 | S22: -- | T22: -- | U22: -- | V22: -- | W22: -- | X22: -- | Y22: -- | Z22: -- | AA22: -- | AB22: SI | AC22: 87.58071
C23: 41 | D23: 300260 | E23: 1434 | F23: 9 DE JULIO - BRAGADO | G23: 66 | H23: 60.93999863 | I23: C | J23: 228.8175068 | K23: 2016-03-13T08:31:00 | L23: 2016-03-13T17:11:00 | M23: 8.666666667 | N23: 520 | O23: P | P23: 0,000 | Q23: 10 | R23: 198.3847784 | S23: -- | T23: -- | U23: -- | V23: -- | W23: -- | X23: -- | Y23: -- | Z23: -- | AA23: -- | AB23: SI | AC23: 198.3847784
C24: 42 | D24: 300426 | E24: 1439 | F24: SAN CLEMENTE - DOLORES | G24: 132 | H24: 102.6 | I24: C | J24: 385.24248 | K24: 2016-03-14T10:10:00 | L24: 2016-03-14T13:15:00 | M24: 3.083333333 | N24: 185 | O24: P | P24: 0,000 | Q24: 10 | R24: 118.6546838 | S24: -- | T24: -- | U24: -- | V24: -- | W24: -- | X24: -- | Y24: -- | Z24: -- | AA24: -- | AB24: SI | AC24: 118.6546838
C25: 43 | D25: 300427 | E25: 1537 | F25: CNEL. SUAREZ - PIGUE | G25: 132 | H25: 47.6 | I25: C | J25: 178.72848 | K25: 2016-03-14T11:12:00 | L25: 2016-03-14T17:20:00 | M25: 6.133333333 | N25: 368 | O25: P | P25: 0,000 | Q25: 10 | R25: 109.5605582 | S25: -- | T25: -- | U25: -- | V25: -- | W25: -- | X25: -- | Y25: -- | Z25: -- | AA25: -- | AB25: SI | AC25: 109.5605582
C26: 44 | D26: 300435 | E26: 1537 | F26: CNEL. SUAREZ - PIGUE | G26: 132 | H26: 47.6 | I26: C | J26: 178.72848 | K26: 2016-03-15T08:09:00 | L26: 2016-03-15T17:40:00 | M26: 9.516666667 | N26: 571 | O26: P | P26: 0,000 | Q26: 10 | R26: 170.149513 | S26: -- | T26: -- | U26: -- | V26: -- | W26: -- | X26: -- | Y26: -- | Z26: -- | AA26: -- | AB26: SI | AC26: 170.149513
C27: 45 | D27: 300436 | E27: 1417 | F27: MONTE - CHASCOMUS | G27: 132 | H27: 114 | I27: C | J27: 428.0472 | K27: 2016-03-15T08:13:00 | L27: 2016-03-15T15:15:00 | M27: 7.033333333 | N27: 422 | O27: P | P27: 0,000 | Q27: 10 | R27: 300.9171816 | S27: -- | T27: -- | U27: -- | V27: -- | W27: -- | X27: -- | Y27: -- | Z27: -- | AA27: -- | AB27: SI | AC27: 300.9171816
C28: 46 | D28: 300441 | E28: 1452 | F28: LOMA NEGRA - OLAVARRIA | G28: 132 | H28: 51.50999832 | I28: C | J28: 193.4097417 | K28: 2016-03-15T09:28:00 | L28: 2016-03-15T14:10:00 | M28: 4.7 | N28: 282 | O28: P | P28: 0,000 | Q28: 10 | R28: 90.9025786 | S28: -- | T28: -- | U28: -- | V28: -- | W28: -- | X28: -- | Y28: -- | Z28: -- | AA28: -- | AB28: SI | AC28: 90.9025786
C29: 47 | D29: 300444 | E29: 1537 | F29: CNEL. SUAREZ - PIGUE | G29: 132 | H29: 47.6 | I29: C | J29: 178.72848 | K29: 2016-03-16T08:14:00 | L29: 2016-03-16T17:27:00 | M29: 9.216666667 | N29: 553 | O29: P | P29: 0,000 | Q29: 10 | R29: 164.7876586 | S29: -- | T29: -- | U29: -- | V29: -- | W29: -- | X29: -- | Y29: -- | Z29: -- | AA29: -- | AB29: SI | AC29: 164.7876586
C30: 48 | D30: 300445 | E30: 1417 | F30: MONTE - CHASCOMUS | G30: 132 | H30: 114 | I30: C | J30: 428.0472 | K30: 2016-03-16T08:32:00 | L30: 2016-03-16T15:37:00 | M30: 7.083333333 | N30: 425 | O30: P | P30: 0,000 | Q30: 10 | R30: 303.0574176 | S30: -- | T30: -- | U30: -- | V30: -- | W30: -- | X30: -- | Y30: -- | Z30: -- | AA30: -- | AB30: SI | AC30: 303.0574176
C31: 49 | D31: 300448 | E31: 1452 | F31: LOMA NEGRA - OLAVARRIA | G31: 132 | H31: 51.50999832 | I31: C | J31: 193.4097417 | K31: 2016-03-16T09:36:00 | L31: 2016-03-16T15:07:00 | M31: 5.516666667 | N31: 331 | O31: P | P31: 0,000 | Q31: 10 | R31: 106.7621774 | S31: -- | T31: -- | U31: -- | V31: -- | W31: -- | X31: -- | Y31: -- | Z31: -- | AA31: -- | AB31: SI | AC31: 106.7621774
C32: 50 | D32: 300454 | E32: 1537 | F32: CNEL. SUAREZ - PIGUE | G32: 132 | H32: 47.6 | I32: C | J32: 178.72848 | K32: 2016-03-17T08:20:00 | L32: 2016-03-17T17:17:00 | M32: 8.95 | N32: 537 | O32: P | P32: 0,000 | Q32: 10 | R32: 159.9619896 | S32: -- | T32: -- | U32: -- | V32: -- | W32: -- | X32: -- | Y32: -- | Z32: -- | AA32: -- | AB32: SI | AC32: 159.9619896
C33: 51 | D33: 300455 | E33: 1417 | F33: MONTE - CHASCOMUS | G33: 132 | H33: 114 | I33: C | J33: 428.0472 | K33: 2016-03-17T08:27:00 | L33: 2016-03-17T15:33:00 | M33: 7.1 | N33: 426 | O33: P | P33: 0,000 | Q33: 10 | R33: 303.913512 | S33: -- | T33: -- | U33: -- | V33: -- | W33: -- | X33: -- | Y33: -- | Z33: -- | AA33: -- | AB33: SI | AC33: 303.913512
C34: 52 | D34: 300459 | E34: 1452 | F34: LOMA NEGRA - OLAVARRIA | G34: 132 | H34: 51.50999832 | I34: C | J34: 193.4097417 | K34: 2016-03-17T09:30:00 | L34: 2016-03-17T17:22:00 | M34: 7.866666667 | N34: 472 | O34: P | P34: 0,000 | Q34: 10 | R34: 152.2134667 | S34: -- | T34: -- | U34: -- | V34: -- | W34: -- | X34: -- | Y34: -- | Z34: -- | AA34: -- | AB34: SI | AC34: 152.2134667
C35: 53 | D35: 300460 | E35: 1438 | F35: CHASCOMUS - VERONICA | G35: 132 | H35: 70.80000305 | I35: B | J35: 265.8398515 | K35: 2016-03-18T02:06:00 | L35: 2016-03-18T21:57:00 | M35: 19.85 | N35: 1191 | O35: F | P35: 0,000 | Q35: 50 | R35: -- | S35: -- | T35: 13291.99257 | U35: 39875.97772 | V35: =IF(AND(O35="F",N35>180),(ROUND(N35/60,2)-3)*J35*Q35*0.1,"--") -> 22397.00749 | W35: -- | X35: -- | Y35: -- | Z35: -- | AA35: -- | AB35: SI | AC35: 75564.97778
C37: 55 | D37: 300463 | E37: 1537 | F37: CNEL. SUAREZ - PIGUE | G37: 132 | H37: 47.6 | I37: C | J37: 178.72848 | K37: 2016-03-18T08:25:00 | L37: 2016-03-18T14:15:00 | M37: 5.833333333 | N37: 350 | O37: P | P37: 0,000 | Q37: 10 | R37: 104.1987038 | S37: -- | T37: -- | U37: -- | V37: -- | W37: -- | X37: -- | Y37: -- | Z37: -- | AA37: -- | AB37: SI | AC37: 104.1987038
C38: 56 | D38: 300464 | E38: 1536 | F38: CARLOS CASARES - 9 DE JULIO | G38: 66 | H38: 46.79999924 | I38: C | J38: 175.7246371 | K38: 2016-03-18T08:48:00 | L38: 2016-03-18T11:37:00 | M38: 2.816666667 | N38: 169 | O38: P | P38: 0,000 | Q38: 10 | R38: 49.55434767 | S38: -- | T38: -- | U38: -- | V38: -- | W38: -- | X38: -- | Y38: -- | Z38: -- | AA38: -- | AB38: SI | AC38: 49.55434767
C39: 57 | D39: 300467 | E39: 1529 | F39: MIRAMAR - NECOCHEA | G39: 132 | H39: 103.2900009 | I39: A | J39: 387.8332954 | K39: 2016-03-18T09:40:00 | L39: 2016-03-18T18:45:00 | M39: 9.083333333 | N39: 545 | O39: P | P39: 0,000 | Q39: 150 | R39: 5282.289484 | S39: -- | T39: -- | U39: -- | V39: -- | W39: -- | X39: -- | Y39: -- | Z39: -- | AA39: -- | AB39: SI | AC39: 5282.289484
J40: 93.87 | AB40: =IF(R40="","","--") -> 
C42: (²) | D42: P - PROGRAMADA ; F - FORZADA | R42: =SUM(R19:R41) -> 7846.285328 | S42: 0 | T42: 13291.99257 | U42: 39875.97772 | V42: 22397.00749 | W42: 0 | X42: 0 | Y42: 0 | Z42: 0 | AA42: 0 | AC42: =ROUND(SUM(AC19:AC41),2) -> 104120.59

Sheet LI-03 (4)
B2: ='TOT-0316'!B2 -> ANEXO IV al Memorándum D.T.E.E. N° 243/ 2017
A4: ENTE NACIONAL REGULADOR
A5: DE LA ELECTRICIDAD
F8: SISTEMA DE TRANSPORTE DE ENERGÍA ELÉCTRICA POR DISTRIBUCIÓN TRONCAL - TRANSBA S.A.
F10: 1.- LÍNEAS
B12: =+'TOT-0316'!B14 -> Desde el 01 al 31 de Marzo de 2016
F14: $/100 km-h : LÍNEAS 220 kV | G14: 392.94 | L14: FACTOR DE PENALIZACIÓN (CLASE A) K= | M14: =150*'TOT-0316'!B13 -> 150 | N14: =IF(M14=150," ",IF(M14=300,"Coeficiente duplicado por tasa de falla >4 Sal. x año/100 km.","REVISAR COEFICIENTE")) -> 
F15: $/100 km-h : LÍNEAS 132 kV | G15: 375.48 | L15: FACTOR DE PENALIZACIÓN (CLASE B) K= | M15: =50*'TOT-0316'!B13 -> 50 | N15: =IF(M15=50," ",IF(M15=100,"Coeficiente duplicado por tasa de falla >4 Sal. x año/100 km.","REVISAR COEFICIENTE")) -> 
F16: $/100 km-h : LÍNEAS 66 kV | G16: 375.48 | L16: FACTOR DE PENALIZACIÓN (CLASE C) K= | M16: =10*'TOT-0316'!B13 -> 10 | N16: =IF(M16=10," ",IF(M16=20,"Coeficiente duplicado por tasa de falla >4 Sal. x año/100 km.","REVISAR COEFICIENTE")) -> 
C17: 3 | D17: 4 | E17: 5 | F17: 6 | G17: 7 | H17: 8 | I17: 9 | J17: 10 | K17: 11 | L17: 12 | M17: 13 | N17: 14 | O17: 15 | P17: 16 | Q17: 17 | R17: 18 | S17: 19 | T17: 20 | U17: 21 | V17: 22 | W17: 23 | X17: 24 | Y17: 25 | Z17: 26 | AA17: 27 | AB17: 28 | AC17: 29
C18: N° | D18: INDISP | E18: ID EQUIPO | F18: LÍNEAS | G18: U [kV] | H18: Long. [km] | I18: CLASE | J18: $/h | K18: Salida | L18: Entrada | M18: Hs. Indisp | N18: Minutos Indisp. | O18: Tipo Sal.(²) | P18: C.R. % | Q18: K (CLASE) | R18: PENALIZ. PROGRAM. | S18: REDUCC. PROGRAM. | T18: PENALIZACIÓN FORZADA Por Salida 1ras. 3 hs. hs. Restantes | W18: REDUCC. FORZADA Por Salida 1ras. 3 hs. hs. Restantes | Z18: RESTANTE FORZADA | AA18: REDUCC. RESTANTE | AB18: Informó en Térm. | AC18: TOTAL PENALIZAC.
AC19: ='LI-03 (3)'!AC42 -> 104120.59
C21: 58 | D21: 300472 | E21: 1529 | F21: MIRAMAR - NECOCHEA | G21: 132 | H21: 103.2900009 | I21: A | J21: =IF(G21=220,$G$14,IF(G21=132,$G$15,$G$16))*IF(H21>25,H21,25)/100 -> 387.8332954 | K21: 2016-03-19T08:14:00 | L21: 2016-03-19T18:13:00 | M21: =IF(F21="","",(L21-K21)*24) -> 9.983333333 | N21: =IF(F21="","",ROUND((L21-K21)*24*60,0)) -> 599 | O21: P | P21: 0,000 | Q21: =IF(I21="A",$M$14,IF(I21="B",$M$15,$M$16)) -> 150 | R21: =IF(O21="P",ROUND(N21/60,2)*J21*Q21*0.01,"--") -> 5805.864433 | S21: =IF(O21="RP",ROUND(N21/60,2)*J21*Q21*0.01*P21/100,"--") -> -- | T21: =IF(O21="F",J21*Q21,"--") -> -- | U21: =IF(AND(N21>10,O21="F"),J21*Q21*IF(N21>180,3,ROUND((N21)/60,2)),"--") -> -- | V21: =IF(AND(O21="F",N21>180),(ROUND(N21/60,2)-3)*J21*Q21*0.1,"--") -> -- | W21: =IF(O21="R",J21*Q21*P21/100,"--") -> -- | X21: =IF(AND(N21>10,O21="R"),Q21*J21*P21/100*IF(N21>180,3,ROUND((N21)/60,2)),"--") -> -- | Y21: =IF(AND(O21="R",N21>180),(ROUND(N21/60,2)-3)*J21*Q21*0.1*P21/100,"--") -> -- | Z21: =IF(O21="RF",ROUND(N21/60,2)*J21*Q21*0.1,"--") -> -- | AA21: =IF(O21="RR",ROUND(N21/60,2)*J21*Q21*0.1*P21/100,"--") -> -- | AB21: SI | AC21: =IF(F21="","",SUM(R21:AA21)*IF(AB21="SI",1,2)) -> 5805.864433
C22: 59 | D22: 300474 | E22: 1529 | F22: MIRAMAR - NECOCHEA | G22: 132 | H22: 103.2900009 | I22: A | J22: 387.8332954 | K22: 2016-03-20T08:11:00 | L22: 2016-03-20T17:54:00 | M22: 9.716666667 | N22: 583 | O22: P | P22: 0,000 | Q22: 150 | R22: 5654.609447 | S22: -- | T22: -- | U22: -- | V22: -- | W22: -- | X22: -- | Y22: -- | Z22: -- | AA22: -- | AB22: SI | AC22: 5654.609447
C23: 60 | D23: 300475 | E23: 1530 | F23: PEHUAJO - CARLOS CASARES | G23: 66 | H23: 53.1 | I23: C | J23: 199.37988 | K23: 2016-03-20T08:24:00 | L23: 2016-03-20T18:42:00 | M23: 10.3 | N23: 618 | O23: P | P23: 0,000 | Q23: 10 | R23: 205.3612764 | S23: -- | T23: -- | U23: -- | V23: -- | W23: -- | X23: -- | Y23: -- | Z23: -- | AA23: -- | AB23: SI | AC23: 205.3612764
C24: 61 | D24: 300638 | E24: 1529 | F24: MIRAMAR - NECOCHEA | G24: 132 | H24: 103.2900009 | I24: A | J24: 387.8332954 | K24: 2016-03-21T08:17:00 | L24: 2016-03-21T17:53:00 | M24: 9.6 | N24: 576 | O24: P | P24: 0,000 | Q24: 150 | R24: 5584.799454 | S24: -- | T24: -- | U24: -- | V24: -- | W24: -- | X24: -- | Y24: -- | Z24: -- | AA24: -- | AB24: SI | AC24: 5584.799454
C25: 62 | D25: 300639 | E25: 1382 | F25: URBANA SAN NICOLÁS - SAN NICOLAS | G25: 132 | H25: 6.5 | I25: C | J25: 93.87 | K25: 2016-03-21T10:01:00 | L25: 2016-03-21T15:05:00 | M25: 5.066666667 | N25: 304 | O25: P | P25: 0,000 | Q25: 10 | R25: 47.59209 | S25: -- | T25: -- | U25: -- | V25: -- | W25: -- | X25: -- | Y25: -- | Z25: -- | AA25: -- | AB25: SI | AC25: 47.59209
C26: 63 | D26: 300640 | E26: 4328 | F26: MAR DE AJO - MAR DEL TUYU - LAS TONINAS | G26: 132 | H26: 29.56999969 | I26: C | J26: 111.0294349 | K26: 2016-03-21T10:22:00 | L26: 2016-03-21T16:21:00 | M26: 5.983333333 | N26: 359 | O26: P | P26: 0,000 | Q26: 10 | R26: 66.39560204 | S26: -- | T26: -- | U26: -- | V26: -- | W26: -- | X26: -- | Y26: -- | Z26: -- | AA26: -- | AB26: SI | AC26: 66.39560204
C27: 64 | D27: 300643 | E27: 4328 | F27: MAR DE AJO - MAR DEL TUYU - LAS TONINAS | G27: 132 | H27: 29.56999969 | I27: C | J27: 111.0294349 | K27: 2016-03-22T08:33:00 | L27: 2016-03-22T16:59:00 | M27: 8.433333333 | N27: 506 | O27: P | P27: 0,000 | Q27: 10 | R27: 93.59781358 | S27: -- | T27: -- | U27: -- | V27: -- | W27: -- | X27: -- | Y27: -- | Z27: -- | AA27: -- | AB27: SI | AC27: 93.59781358
C28: 65 | D28: 300644 | E28: 1529 | F28: MIRAMAR - NECOCHEA | G28: 132 | H28: 103.2900009 | I28: A | J28: 387.8332954 | K28: 2016-03-22T08:36:00 | L28: 2016-03-22T18:49:00 | M28: 10.21666667 | N28: 613 | O28: P | P28: 0,000 | Q28: 150 | R28: 5945.484419 | S28: -- | T28: -- | U28: -- | V28: -- | W28: -- | X28: -- | Y28: -- | Z28: -- | AA28: -- | AB28: SI | AC28: 5945.484419
C29: 66 | D29: 300647 | E29: 1382 | F29: URBANA SAN NICOLÁS - SAN NICOLAS | G29: 132 | H29: 6.5 | I29: C | J29: 93.87 | K29: 2016-03-22T09:13:00 | L29: 2016-03-22T16:09:00 | M29: 6.933333333 | N29: 416 | O29: P | P29: 0,000 | Q29: 10 | R29: 65.05191 | S29: -- | T29: -- | U29: -- | V29: -- | W29: -- | X29: -- | Y29: -- | Z29: -- | AA29: -- | AB29: SI | AC29: 65.05191
C30: 67 | D30: 300653 | E30: 4095 | F30: LAS FLORES - ROSAS | G30: 132 | H30: 28.39999962 | I30: C | J30: 106.6363186 | K30: 2016-03-22T17:24:00 | L30: 2016-03-22T17:45:00 | M30: 0.3500000001 | N30: 21 | O30: P | P30: 0,000 | Q30: 10 | R30: 3.73227115 | S30: -- | T30: -- | U30: -- | V30: -- | W30: -- | X30: -- | Y30: -- | Z30: -- | AA30: -- | AB30: SI | AC30: 3.73227115
C31: 68 | D31: 300657 | E31: 1529 | F31: MIRAMAR - NECOCHEA | G31: 132 | H31: 103.2900009 | I31: A | J31: 387.8332954 | K31: 2016-03-23T08:37:00 | L31: 2016-03-23T17:05:00 | M31: 8.466666667 | N31: 508 | O31: P | P31: 0,000 | Q31: 150 | R31: 4927.422019 | S31: -- | T31: -- | U31: -- | V31: -- | W31: -- | X31: -- | Y31: -- | Z31: -- | AA31: -- | AB31: SI | AC31: 4927.422019
C32: 69 | D32: 300658 | E32: 1382 | F32: URBANA SAN NICOLÁS - SAN NICOLAS | G32: 132 | H32: 6.5 | I32: C | J32: 93.87 | K32: 2016-03-23T08:47:00 | L32: 2016-03-23T14:51:00 | M32: 6.066666667 | N32: 364 | O32: P | P32: 0,000 | Q32: 10 | R32: 56.97909 | S32: -- | T32: -- | U32: -- | V32: -- | W32: -- | X32: -- | Y32: -- | Z32: -- | AA32: -- | AB32: SI | AC32: 56.97909
C33: 70 | D33: 300659 | E33: 4328 | F33: MAR DE AJO - MAR DEL TUYU - LAS TONINAS | G33: 132 | H33: 29.56999969 | I33: C | J33: 111.0294349 | K33: 2016-03-23T09:04:00 | L33: 2016-03-23T17:37:00 | M33: 8.55 | N33: 513 | O33: P | P33: 0,000 | Q33: 10 | R33: 94.9301668 | S33: -- | T33: -- | U33: -- | V33: -- | W33: -- | X33: -- | Y33: -- | Z33: -- | AA33: -- | AB33: SI | AC33: 94.9301668
C34: 71 | D34: 300660 | E34: 1434 | F34: 9 DE JULIO - BRAGADO | G34: 66 | H34: 60.94 | I34: C | J34: 228.817512 | K34: 2016-03-24T07:37:00 | L34: 2016-03-24T09:08:00 | M34: 1.516666667 | N34: 91 | O34: P | P34: 0,000 | Q34: 10 | R34: 34.78026182 | S34: -- | T34: -- | U34: -- | V34: -- | W34: -- | X34: -- | Y34: -- | Z34: -- | AA34: -- | AB34: SI | AC34: 34.78026182
C35: 72 | D35: 300662 | E35: 4933 | F35: ZARATE - LAS PALMAS | G35: 132 | H35: 8.7 | I35: C | J35: 93.87 | K35: 2016-03-24T08:14:00 | L35: 2016-03-24T18:00:00 | M35: 9.766666667 | N35: 586 | O35: P | P35: 0,000 | Q35: 10 | R35: 91.71099 | S35: -- | T35: -- | U35: -- | V35: -- | W35: -- | X35: -- | Y35: -- | Z35: -- | AA35: -- | AB35: SI | AC35: 91.71099
C36: 73 | D36: 300667 | E36: 1409 | F36: CHIVILCOY - MERCEDES B.A. | G36: 132 | H36: 69.09999847 | I36: C | J36: 259.4566743 | K36: 2016-03-26T07:58:00 | L36: 2016-03-26T10:00:00 | M36: 2.033333333 | N36: 122 | O36: P | P36: 0,000 | Q36: 10 | R36: 52.66970488 | S36: -- | T36: -- | U36: -- | V36: -- | W36: -- | X36: -- | Y36: -- | Z36: -- | AA36: -- | AB36: SI | AC36: 52.66970488
C37: 74 | D37: 300668 | E37: 1410 | F37: MERCEDES B.A. - LUJAN | G37: 132 | H37: 41.3 | I37: B | J37: 155.07324 | K37: 2016-03-26T10:09:00 | L37: 2016-03-26T13:04:00 | M37: 2.916666667 | N37: 175 | O37: P | P37: 0,000 | Q37: 50 | R37: 226.4069304 | S37: -- | T37: -- | U37: -- | V37: -- | W37: -- | X37: -- | Y37: -- | Z37: -- | AA37: -- | AB37: SI | AC37: 226.4069304
C38: 75 | D38: 300669 | E38: 1403 | F38: BRAGADO - HENDERSON | G38: 220 | H38: 177 | I38: A | J38: =IF(G38=220,$G$14,IF(G38=132,$G$15,$G$16))*IF(H38>25,H38,25)/100 -> 695.5038 | K38: 2016-03-27T02:35:00 | L38: 2016-03-27T13:34:00 | M38: 10.98333333 | N38: 659 | O38: F | P38: 0,000 | Q38: =IF(I38="A",$M$14,IF(I38="B",$M$15,$M$16)) -> 150 | R38: =IF(O38="P",ROUND(N38/60,2)*J38*Q38*0.01,"--") -> -- | S38: =IF(O38="RP",ROUND(N38/60,2)*J38*Q38*0.01*P38/100,"--") -> -- | T38: =IF(O38="F",J38*Q38,"--") -> 104325.57 | U38: =IF(AND(N38>10,O38="F"),J38*Q38*IF(N38>180,3,ROUND((N38)/60,2)),"--") -> 312976.71 | V38: =IF(AND(O38="F",N38>180),(ROUND(N38/60,2)-3)*J38*Q38*0.1,"--") -> 83251.80486 | W38: -- | X38: -- | Y38: -- | Z38: -- | AA38: -- | AB38: SI | AC38: =IF(F38="","",SUM(R38:AA38)*IF(AB38="SI",1,2)) -> 500554.0849
C39: 76 | D39: 300670 | E39: 1406 | F39: BRAGADO - CHACABUCO | G39: 132 | H39: 60.6 | I39: B | J39: 227.54088 | K39: 2016-03-27T08:20:00 | L39: 2016-03-27T11:50:00 | M39: 3.5 | N39: 210 | O39: P | P39: 0,000 | Q39: 50 | R39: 398.19654 | S39: -- | T39: -- | U39: -- | V39: -- | W39: -- | X39: -- | Y39: -- | Z39: -- | AA39: -- | AB39: SI | AC39: 398.19654
J40: 93.87 | AB40: =IF(R40="","","--") -> 
C42: (²) | D42: P - PROGRAMADA ; F - FORZADA | R42: =SUM(R19:R41) -> 29355.58442 | S42: 0 | T42: 104325.57 | U42: 312976.71 | V42: 83251.80486 | W42: 0 | X42: 0 | Y42: 0 | Z42: 0 | AA42: 0 | AC42: =ROUND(SUM(AC19:AC41),2) -> 634030.26

Sheet LI-03 (5)
B2: ='TOT-0316'!B2 -> ANEXO IV al Memorándum D.T.E.E. N° 243/ 2017
A4: ENTE NACIONAL REGULADOR
A5: DE LA ELECTRICIDAD
F8: SISTEMA DE TRANSPORTE DE ENERGÍA ELÉCTRICA POR DISTRIBUCIÓN TRONCAL - TRANSBA S.A.
F10: 1.- LÍNEAS
B12: =+'TOT-0316'!B14 -> Desde el 01 al 31 de Marzo de 2016
F14: $/100 km-h : LÍNEAS 220 kV | G14: 392.94 | L14: FACTOR DE PENALIZACIÓN (CLASE A) K= | M14: =150*'TOT-0316'!B13 -> 150 | N14: =IF(M14=150," ",IF(M14=300,"Coeficiente duplicado por tasa de falla >4 Sal. x año/100 km.","REVISAR COEFICIENTE")) -> 
F15: $/100 km-h : LÍNEAS 132 kV | G15: 375.48 | L15: FACTOR DE PENALIZACIÓN (CLASE B) K= | M15: =50*'TOT-0316'!B13 -> 50 | N15: =IF(M15=50," ",IF(M15=100,"Coeficiente duplicado por tasa de falla >4 Sal. x año/100 km.","REVISAR COEFICIENTE")) -> 
F16: $/100 km-h : LÍNEAS 66 kV | G16: 375.48 | L16: FACTOR DE PENALIZACIÓN (CLASE C) K= | M16: =10*'TOT-0316'!B13 -> 10 | N16: =IF(M16=10," ",IF(M16=20,"Coeficiente duplicado por tasa de falla >4 Sal. x año/100 km.","REVISAR COEFICIENTE")) -> 
C17: 3 | D17: 4 | E17: 5 | F17: 6 | G17: 7 | H17: 8 | I17: 9 | J17: 10 | K17: 11 | L17: 12 | M17: 13 | N17: 14 | O17: 15 | P17: 16 | Q17: 17 | R17: 18 | S17: 19 | T17: 20 | U17: 21 | V17: 22 | W17: 23 | X17: 24 | Y17: 25 | Z17: 26 | AA17: 27 | AB17: 28 | AC17: 29
C18: N° | D18: INDISP | E18: ID EQUIPO | F18: LÍNEAS | G18: U [kV] | H18: Long. [km] | I18: CLASE | J18: $/h | K18: Salida | L18: Entrada | M18: Hs. Indisp | N18: Minutos Indisp. | O18: Tipo Sal.(²) | P18: C.R. % | Q18: K (CLASE) | R18: PENALIZ. PROGRAM. | S18: REDUCC. PROGRAM. | T18: PENALIZACIÓN FORZADA Por Salida 1ras. 3 hs. hs. Restantes | W18: REDUCC. FORZADA Por Salida 1ras. 3 hs. hs. Restantes | Z18: RESTANTE FORZADA | AA18: REDUCC. RESTANTE | AB18: Informó en Térm. | AC18: TOTAL PENALIZAC.
AC19: ='LI-03 (4)'!AC42 -> 634030.26
C21: 77 | D21: 300866 | E21: 1456 | F21: LAPRIDA - PRINGLES | G21: 132 | H21: 71.5 | I21: C | J21: =IF(G21=220,$G$14,IF(G21=132,$G$15,$G$16))*IF(H21>25,H21,25)/100 -> 268.4682 | K21: 2016-03-28T11:10:00 | L21: 2016-03-28T17:10:00 | M21: =IF(F21="","",(L21-K21)*24) -> 6 | N21: =IF(F21="","",ROUND((L21-K21)*24*60,0)) -> 360 | O21: P | P21: 0,000 | Q21: =IF(I21="A",$M$14,IF(I21="B",$M$15,$M$16)) -> 10 | R21: =IF(O21="P",ROUND(N21/60,2)*J21*Q21*0.01,"--") -> 161.08092 | S21: =IF(O21="RP",ROUND(N21/60,2)*J21*Q21*0.01*P21/100,"--") -> -- | T21: =IF(O21="F",J21*Q21,"--") -> -- | U21: =IF(AND(N21>10,O21="F"),J21*Q21*IF(N21>180,3,ROUND((N21)/60,2)),"--") -> -- | V21: =IF(AND(O21="F",N21>180),(ROUND(N21/60,2)-3)*J21*Q21*0.1,"--") -> -- | W21: =IF(O21="R",J21*Q21*P21/100,"--") -> -- | X21: =IF(AND(N21>10,O21="R"),Q21*J21*P21/100*IF(N21>180,3,ROUND((N21)/60,2)),"--") -> -- | Y21: =IF(AND(O21="R",N21>180),(ROUND(N21/60,2)-3)*J21*Q21*0.1*P21/100,"--") -> -- | Z21: =IF(O21="RF",ROUND(N21/60,2)*J21*Q21*0.1,"--") -> -- | AA21: =IF(O21="RR",ROUND(N21/60,2)*J21*Q21*0.1*P21/100,"--") -> -- | AB21: SI | AC21: =IF(F21="","",SUM(R21:AA21)*IF(AB21="SI",1,2)) -> 161.08092
C22: 78 | D22: 300872 | E22: 4293 | F22: S. CLEMENTE - LAS TONINAS | G22: 132 | H22: 14.6 | I22: B | J22: 93.87 | K22: 2016-03-29T09:07:00 | L22: 2016-03-29T15:22:00 | M22: 6.25 | N22: 375 | O22: P | P22: 0,000 | Q22: 50 | R22: 293.34375 | S22: -- | T22: -- | U22: -- | V22: -- | W22: -- | X22: -- | Y22: -- | Z22: -- | AA22: -- | AB22: SI | AC22: 293.34375
C23: 79 | D23: 300873 | E23: 1456 | F23: LAPRIDA - PRINGLES | G23: 132 | H23: 71.5 | I23: C | J23: 268.4682 | K23: 2016-03-29T09:10:00 | L23: 2016-03-29T18:02:00 | M23: 8.866666667 | N23: 532 | O23: P | P23: 0,000 | Q23: 10 | R23: 238.1312934 | S23: -- | T23: -- | U23: -- | V23: -- | W23: -- | X23: -- | Y23: -- | Z23: -- | AA23: -- | AB23: SI | AC23: 238.1312934
C24: 80 | D24: 300875 | E24: 1409 | F24: CHIVILCOY - MERCEDES B.A. | G24: 132 | H24: 69.09999847 | I24: C | J24: 259.4566743 | K24: 2016-03-29T09:15:00 | L24: 2016-03-29T14:30:00 | M24: 5.25 | N24: 315 | O24: P | P24: 0,000 | Q24: 10 | R24: 136.214754 | S24: -- | T24: -- | U24: -- | V24: -- | W24: -- | X24: -- | Y24: -- | Z24: -- | AA24: -- | AB24: SI | AC24: 136.214754
C25: 81 | D25: 300878 | E25: 2713 | F25: VILLA LIA "T" - VILLA LÍA | G25: 132 | H25: 8 | I25: C | J25: 93.87 | K25: 2016-03-29T10:03:00 | L25: 2016-03-29T15:05:00 | M25: 5.033333333 | N25: 302 | O25: P | P25: 0,000 | Q25: 10 | R25: 47.21661 | S25: -- | T25: -- | U25: -- | V25: -- | W25: -- | X25: -- | Y25: -- | Z25: -- | AA25: -- | AB25: SI | AC25: 47.21661
C26: 82 | D26: 300880 | E26: 5434 | F26: B. BLANCA - TORNQUIST - PIGUE | G26: 132 | H26: 132.3 | I26: C | J26: 496.76004 | K26: 2016-03-29T13:47:00 | L26: 2016-03-29T15:56:00 | M26: 2.15 | N26: 129 | O26: F | P26: 0,000 | Q26: 10 | R26: -- | S26: -- | T26: 4967.6004 | U26: 10680.34086 | V26: -- | W26: -- | X26: -- | Y26: -- | Z26: -- | AA26: -- | AB26: SI | AC26: 15647.94126
C27: 83 | D27: 300887 | E27: 4293 | F27: S. CLEMENTE - LAS TONINAS | G27: 132 | H27: 14.6 | I27: B | J27: 93.87 | K27: 2016-03-30T08:24:00 | L27: 2016-03-30T16:30:00 | M27: 8.1 | N27: 486 | O27: P | P27: 0,000 | Q27: 50 | R27: 380.1735 | S27: -- | T27: -- | U27: -- | V27: -- | W27: -- | X27: -- | Y27: -- | Z27: -- | AA27: -- | AB27: SI | AC27: 380.1735
C28: 84 | D28: 300888 | E28: 1456 | F28: LAPRIDA - PRINGLES | G28: 132 | H28: 71.5 | I28: C | J28: 268.4682 | K28: 2016-03-30T08:52:00 | L28: 2016-03-30T17:30:00 | M28: 8.633333333 | N28: 518 | O28: P | P28: 0,000 | Q28: 10 | R28: 231.6880566 | S28: -- | T28: -- | U28: -- | V28: -- | W28: -- | X28: -- | Y28: -- | Z28: -- | AA28: -- | AB28: SI | AC28: 231.6880566
C29: 85 | D29: 300892 | E29: 1409 | F29: CHIVILCOY - MERCEDES B.A. | G29: 132 | H29: 69.09999847 | I29: C | J29: 259.4566743 | K29: 2016-03-30T09:12:00 | L29: 2016-03-30T14:37:00 | M29: 5.416666667 | N29: 325 | O29: P | P29: 0,000 | Q29: 10 | R29: 140.6255175 | S29: -- | T29: -- | U29: -- | V29: -- | W29: -- | X29: -- | Y29: -- | Z29: -- | AA29: -- | AB29: SI | AC29: 140.6255175
C30: 86 | D30: 300894 | E30: 4293 | F30: S. CLEMENTE - LAS TONINAS | G30: 132 | H30: 14.6 | I30: B | J30: 93.87 | K30: 2016-03-31T08:19:00 | L30: 2016-03-31T16:42:00 | M30: 8.383333333 | N30: 503 | O30: P | P30: 0,000 | Q30: 50 | R30: 393.3153 | S30: -- | T30: -- | U30: -- | V30: -- | W30: -- | X30: -- | Y30: -- | Z30: -- | AA30: -- | AB30: SI | AC30: 393.3153
C31: 87 | D31: 300895 | E31: 1456 | F31: LAPRIDA - PRINGLES | G31: 132 | H31: 71.5 | I31: C | J31: 268.4682 | K31: 2016-03-31T08:32:00 | L31: 2016-03-31T17:27:00 | M31: 8.916666667 | N31: 535 | O31: P | P31: 0,000 | Q31: 10 | R31: 239.4736344 | S31: -- | T31: -- | U31: -- | V31: -- | W31: -- | X31: -- | Y31: -- | Z31: -- | AA31: -- | AB31: SI | AC31: 239.4736344
C32: 88 | D32: 300898 | E32: 1519 | F32: TANDIL - NECOCHEA | G32: 132 | H32: 149.1999969 | I32: C | J32: 560.2161485 | K32: 2016-03-31T09:07:00 | L32: 2016-03-31T17:39:00 | M32: 8.533333333 | N32: 512 | O32: P | P32: 0,000 | Q32: 10 | R32: 477.8643747 | S32: -- | T32: -- | U32: -- | V32: -- | W32: -- | X32: -- | Y32: -- | Z32: -- | AA32: -- | AB32: SI | AC32: 477.8643747
J33: 93.87 | Q33: 10 | R33: -- | S33: -- | T33: -- | U33: -- | V33: -- | W33: -- | X33: -- | Y33: -- | Z33: -- | AA33: -- | AB33: =IF(R33="","","--") -> --
J34: 93.87 | Q34: 10 | R34: -- | S34: -- | T34: -- | U34: -- | V34: -- | W34: -- | X34: -- | Y34: -- | Z34: -- | AA34: -- | AB34: --
J35: 93.87 | Q35: 10 | R35: -- | S35: -- | T35: -- | U35: -- | V35: -- | W35: -- | X35: -- | Y35: -- | Z35: -- | AA35: -- | AB35: --
J36: 93.87 | Q36: 10 | R36: -- | S36: -- | T36: -- | U36: -- | V36: -- | W36: -- | X36: -- | Y36: -- | Z36: -- | AA36: -- | AB36: --
J37: 93.87 | Q37: 10 | R37: -- | S37: -- | T37: -- | U37: -- | V37: -- | W37: -- | X37: -- | Y37: -- | Z37: -- | AA37: -- | AB37: --
J38: 93.87 | Q38: 10 | R38: -- | S38: -- | T38: -- | U38: -- | V38: -- | W38: -- | X38: -- | Y38: -- | Z38: -- | AA38: -- | AB38: --
J39: 93.87 | Q39: 10 | R39: -- | S39: -- | T39: -- | U39: -- | V39: -- | W39: -- | X39: -- | Y39: -- | Z39: -- | AA39: -- | AB39: --
J40: 93.87
C42: (²) | D42: P - PROGRAMADA ; F - FORZADA | R42: =SUM(R19:R41) -> 2739.127711 | S42: 0 | T42: 4967.6004 | U42: 10680.34086 | V42: 0 | W42: 0 | X42: 0 | Y42: 0 | Z42: 0 | AA42: 0 | AC42: =ROUND(SUM(AC19:AC41),2) -> 652417.33

Sheet T-03 (1)
B2: ='TOT-0316'!B2 -> ANEXO IV al Memorándum D.T.E.E. N° 243/ 2017
A4: ENTE NACIONAL REGULADOR
A5: DE LA ELECTRICIDAD
F8: SISTEMA DE TRANSPORTE DE ENERGÍA ELÉCTRICA POR DISTRIBUCIÓN TRONCAL - TRANSBA S.A.
F10: 2.- CONEXIÓN
F12: 2.1.- Transformación
B14: ='TOT-0316'!B14 -> Desde el 01 al 31 de Marzo de 2016
F16: Por Transformador por MVA $ = | I16: 1.31
F17: Coeficiente de penalización por salida forzada = | I17: =60*'TOT-0316'!B13 -> 60 | K17: =IF(I17=60," ",IF(I17=120," Coeficiente duplicado por tasa de falla >4 Sal. x año/100 km."," REVISAR COEFICIENTE")) -> 
C18: 3 | D18: 4 | E18: 5 | F18: 6 | G18: 7 | H18: 8 | I18: 9 | J18: 10 | K18: 11 | L18: 12 | M18: 13 | N18: 14 | O18: 15 | P18: 16 | Q18: 17 | R18: 18 | S18: 19 | T18: 20 | U18: 21 | V18: 22 | W18: 23 | X18: 24 | Y18: 25 | Z18: 26 | AA18: 27 | AB18: 28 | AC18: 29
C19: N° | D19: INDISP | E19: ID EQUIPO | F19: ESTACIÓN TRANSFORMADORA | G19: EQUIPO | H19: POT. [MVA] | I19: U [kV] | J19: $/h | K19: Salida | L19: Entrada | M19: Hs Indisp. | N19: Minutos. Indisp. | O19: Tipo Sal.(²) | P19: AUT. | Q19: C.R. % | R19: E.N.S. | S19: K (P y ENS) | T19: PENALIZ. PROGRAM. | U19: REDUCC. PROGRAM. | V19: PENALIZACIÓN FORZADA Por Salida hs. Restantes | X19: REDUCC. FORZADA Por Salida hs. Restantes | Z19: RESTANTE FORZADA | AA19: REDUCC. RESTANTE | AB19: Informó en Térm. | AC19: TOTAL PENALIZAC.
C22: 89 | D22: 299942 | E22: 2296 | F22: OLAVARRIA VIEJA | G22: T1OA | H22: 30 | I22: 132/33/13,2 | J22: =H22*$I$16 -> 39.3 | K22: 2016-03-01T09:18:00 | L22: 2016-03-01T14:59:00 | M22: =IF(F22="","",(L22-K22)*24) -> 5.683333333 | N22: =IF(F22="","",ROUND((L22-K22)*24*60,0)) -> 341 | O22: P | P22: =IF(F22="","",IF(OR(O22="P",O22="RP"),"--","NO")) -> -- | Q22: =IF(F22="","","--") -> -- | R22: NO | S22: =$I$17*IF(OR(O22="P",O22="RP"),0.1,1)*IF(R22="SI",1,0.1) -> 0.6 | T22: =IF(O22="P",J22*S22*ROUND(N22/60,2),"--") -> 133.9344 | U22: =IF(O22="RP",J22*S22*ROUND(N22/60,2)*Q22/100,"--") -> -- | V22: =IF(AND(O22="F",P22="NO"),J22*S22,"--") -> -- | W22: =IF(O22="F",J22*S22*ROUND(N22/60,2),"--") -> -- | X22: =IF(AND(O22="R",P22="NO"),J22*S22*Q22/100,"--") -> -- | Y22: =IF(O22="R",J22*S22*ROUND(N22/60,2)*Q22/100,"--") -> -- | Z22: =IF(O22="RF",J22*S22*ROUND(N22/60,2),"--") -> -- | AA22: =IF(O22="RR",J22*S22*ROUND(N22/60,2)*Q22/100,"--") -> -- | AB22: =IF(F22="","","SI") -> SI | AC22: =IF(F22="","",SUM(T22:AA22)*IF(AB22="SI",1,2)*IF(AND(Q22<>"0,000",O22="RF"),Q22/100,1)) -> 133.9344
C23: 90 | D23: 299948 | E23: 2296 | F23: OLAVARRIA VIEJA | G23: T1OA | H23: 30 | I23: 132/33/13,2 | J23: 39.3 | K23: 2016-03-02T09:20:00 | L23: 2016-03-02T14:30:00 | M23: 5.166666667 | N23: 310 | O23: P | P23: -- | Q23: -- | R23: =IF(F23="","","NO") -> NO | S23: 0.6 | T23: 121.9086 | U23: -- | V23: -- | W23: -- | X23: -- | Y23: -- | Z23: -- | AA23: -- | AB23: SI | AC23: 121.9086
C24: 91 | D24: 299953 | E24: 4638 | F24: PUNTA ALTA | G24: TRAFO 1 | H24: 15 | I24: 132/33/13,2 | J24: 19.65 | K24: 2016-03-03T08:59:00 | L24: 2016-03-11T16:08:00 | M24: 199.15 | N24: 11949 | O24: P | P24: -- | Q24: -- | R24: NO | S24: 0.6 | T24: 2347.9785 | U24: -- | V24: -- | W24: -- | X24: -- | Y24: -- | Z24: -- | AA24: -- | AB24: SI | AC24: 2347.9785
C25: 92 | D25: 299954 | E25: 2296 | F25: OLAVARRIA VIEJA | G25: T1OA | H25: 30 | I25: 132/33/13,2 | J25: 39.3 | K25: 2016-03-03T09:11:00 | L25: 2016-03-03T14:54:00 | M25: 5.716666667 | N25: 343 | O25: P | P25: -- | Q25: -- | R25: NO | S25: 0.6 | T25: 134.8776 | U25: -- | V25: -- | W25: -- | X25: -- | Y25: -- | Z25: -- | AA25: -- | AB25: SI | AC25: 134.8776
C26: 93 | D26: 299961 | E26: 4585 | F26: JUNIN | G26: TRAFO 2 | H26: 30 | I26: 132/33/13,2 | J26: 39.3 | K26: 2016-03-04T09:14:00 | L26: 2016-03-04T12:40:00 | M26: 3.433333333 | N26: 206 | O26: P | P26: -- | Q26: -- | R26: NO | S26: 0.6 | T26: 80.8794 | U26: -- | V26: -- | W26: -- | X26: -- | Y26: -- | Z26: -- | AA26: -- | AB26: SI | AC26: 80.8794
C27: 94 | D27: 299962 | E27: 2374 | F27: BARKER | G27: Trafo 1 | H27: 15 | I27: 132/33/13,2 | J27: 19.65 | K27: 2016-03-04T16:17:00 | L27: 2016-03-04T17:28:00 | M27: 1.183333333 | N27: 71 | O27: F | P27: NO | Q27: -- | R27: SI | S27: 60 | T27: -- | U27: -- | V27: 1179 | W27: 1391.22 | X27: -- | Y27: -- | Z27: -- | AA27: -- | AB27: SI | AC27: 2570.22
C28: 95 | D28: 299963 | E28: 5240 | F28: BARKER | G28: TRAFO 2 | H28: 40 | I28: 132/33/13,2 | J28: 52.4 | K28: 2016-03-04T16:17:00 | L28: 2016-03-04T18:44:00 | M28: 2.45 | N28: 147 | O28: F | P28: NO | Q28: -- | R28: SI | S28: 60 | T28: -- | U28: -- | V28: 3144 | W28: 7702.8 | X28: -- | Y28: -- | Z28: -- | AA28: -- | AB28: SI | AC28: 10846.8
C29: 96 | D29: 299973 | E29: 2465 | F29: MAR DEL TUYU | G29: TRAFO 1 | H29: 20 | I29: 132/33/13,2 | J29: 26.2 | K29: 2016-03-05T09:46:00 | L29: 2016-03-05T12:59:00 | M29: 3.216666667 | N29: 193 | O29: P | P29: -- | Q29: -- | R29: NO | S29: 0.6 | T29: 50.6184 | U29: -- | V29: -- | W29: -- | X29: -- | Y29: -- | Z29: -- | AA29: -- | AB29: SI | AC29: 50.6184
C30: 97 | D30: 299976 | E30: 5302 | F30: AZUL | G30: TRAFO 1 | H30: 30 | I30: 132/33/13,2 | J30: 39.3 | K30: 2016-03-06T08:57:00 | L30: 2016-03-06T16:09:00 | M30: 7.2 | N30: 432 | O30: P | P30: -- | Q30: -- | R30: NO | S30: 0.6 | T30: 169.776 | U30: -- | V30: -- | W30: -- | X30: -- | Y30: -- | Z30: -- | AA30: -- | AB30: SI | AC30: 169.776
C31: 98 | D31: 300223 | E31: 2233 | F31: SAN ANTONIO DE ARECO | G31: TRAFO 1 | H31: 5 | I31: 66/13,2 | J31: 6.55 | K31: 2016-03-08T09:16:00 | L31: 2016-03-08T14:09:00 | M31: 4.883333333 | N31: 293 | O31: P | P31: -- | Q31: -- | R31: NO | S31: 0.6 | T31: 19.1784 | U31: -- | V31: -- | W31: -- | X31: -- | Y31: -- | Z31: -- | AA31: -- | AB31: SI | AC31: 19.1784
C32: 99 | D32: 300224 | E32: 2234 | F32: SAN ANTONIO DE ARECO | G32: TRAFO 2 | H32: 5 | I32: 66/13,2 | J32: 6.55 | K32: 2016-03-08T09:17:00 | L32: 2016-03-08T14:08:00 | M32: 4.85 | N32: 291 | O32: P | P32: -- | Q32: -- | R32: NO | S32: 0.6 | T32: 19.0605 | U32: -- | V32: -- | W32: -- | X32: -- | Y32: -- | Z32: -- | AA32: -- | AB32: SI | AC32: 19.0605
C33: 100 | D33: 300227 | E33: 2381 | F33: BARKER | G33: TRAFO 4 | H33: 1.5 | I33: 33/13,2 | J33: 1.965 | K33: 2016-03-08T10:46:00 | L33: 2016-03-08T14:07:00 | M33: 3.35 | N33: 201 | O33: P | P33: -- | Q33: -- | R33: NO | S33: 0.6 | T33: 3.94965 | U33: -- | V33: -- | W33: -- | X33: -- | Y33: -- | Z33: -- | AA33: -- | AB33: SI | AC33: 3.94965
C34: 101 | D34: 300233 | E34: 2374 | F34: BARKER | G34: TRAFO1 | H34: 15 | I34: 132/33/13,2 | J34: 19.65 | K34: 2016-03-09T09:48:00 | L34: 2016-03-09T16:41:00 | M34: 6.883333333 | N34: 413 | O34: P | P34: -- | Q34: -- | R34: NO | S34: 0.6 | T34: 81.1152 | U34: -- | V34: -- | W34: -- | X34: -- | Y34: -- | Z34: -- | AA34: -- | AB34: SI | AC34: 81.1152
C35: 102 | D35: 300235 | E35: 2297 | F35: OLAVARRIA VIEJA | G35: TRAFO 2 | H35: 30 | I35: 132/33/13,2 | J35: 39.3 | K35: 2016-03-09T09:59:00 | L35: 2016-03-09T10:37:00 | M35: 0.6333333333 | N35: 38 | O35: P | P35: -- | Q35: -- | R35: NO | S35: 0.6 | T35: 14.8554 | U35: -- | V35: -- | W35: -- | X35: -- | Y35: -- | Z35: -- | AA35: -- | AB35: SI | AC35: 14.8554
C36: 103 | D36: 300236 | E36: 2381 | F36: BARKER | G36: TRAFO 4 | H36: 1.5 | I36: 33/13,2 | J36: 1.965 | K36: 2016-03-09T11:30:00 | L36: 2016-03-09T16:23:00 | M36: 4.883333333 | N36: 293 | O36: P | P36: -- | Q36: -- | R36: NO | S36: 0.6 | T36: 5.75352 | U36: -- | V36: -- | W36: -- | X36: -- | Y36: -- | Z36: -- | AA36: -- | AB36: SI | AC36: 5.75352
C37: 104 | D37: 300244 | E37: 2374 | F37: BARKER | G37: TRAFO 1 | H37: 15 | I37: 132/33/13,2 | J37: 19.65 | K37: 2016-03-10T09:12:00 | L37: 2016-03-10T17:14:00 | M37: 8.033333333 | N37: 482 | O37: P | P37: -- | Q37: -- | R37: NO | S37: 0.6 | T37: 94.6737 | U37: -- | V37: -- | W37: -- | X37: -- | Y37: -- | Z37: -- | AA37: -- | AB37: SI | AC37: 94.6737
C38: 105 | D38: 300246 | E38: 4833 | F38: LOS CHAÑARES | G38: TRAFO 2 | H38: 30 | I38: 132/33/13,2 | J38: 39.3 | K38: 2016-03-10T09:54:00 | L38: 2016-03-10T18:14:00 | M38: 8.333333333 | N38: 500 | O38: P | P38: -- | Q38: -- | R38: NO | S38: 0.6 | T38: 196.4214 | U38: -- | V38: -- | W38: -- | X38: -- | Y38: -- | Z38: -- | AA38: -- | AB38: SI | AC38: 196.4214
C39: 106 | D39: 300253 | E39: 2431 | F39: VILLA GESELL | G39: TRAFO 3 | H39: 40 | I39: 132/13,2 | J39: 52.4 | K39: 2016-03-11T09:39:00 | L39: 2016-03-11T16:36:00 | M39: 6.95 | N39: 417 | O39: P | P39: -- | Q39: -- | R39: NO | S39: 0.6 | T39: 218.508 | U39: -- | V39: -- | W39: -- | X39: -- | Y39: -- | Z39: -- | AA39: -- | AB39: SI | AC39: 218.508
C40: 107 | D40: 300255 | E40: 4833 | F40: LOS CHAÑARES | G40: TRAFO 2 | H40: 30 | I40: 132/33/13,2 | J40: 39.3 | K40: 2016-03-11T09:45:00 | L40: 2016-03-11T14:27:00 | M40: 4.7 | N40: 282 | O40: P | P40: -- | Q40: =IF(F40="","","--") -> -- | R40: NO | S40: 0.6 | T40: 110.826 | U40: -- | V40: -- | W40: -- | X40: -- | Y40: -- | Z40: -- | AA40: -- | AB40: SI | AC40: 110.826
C42: (²) | D42: P - PROGRAMADA ; F - FORZADA | T42: =SUM(T20:T41) -> 3804.31467 | U42: =SUM(U20:U41) -> 0 | V42: =SUM(V20:V41) -> 4323 | W42: =SUM(W22:W41) -> 9094.02 | X42: =SUM(X20:X41) -> 0 | Y42: =SUM(Y22:Y41) -> 0 | Z42: =SUM(Z20:Z41) -> 0 | AA42: =SUM(AA22:AA41) -> 0 | AC42: =ROUND(SUM(AC20:AC41),2) -> 17221.33

Sheet T-03 (2)
B2: ='TOT-0316'!B2 -> ANEXO IV al Memorándum D.T.E.E. N° 243/ 2017
A4: ENTE NACIONAL REGULADOR
A5: DE LA ELECTRICIDAD
F8: SISTEMA DE TRANSPORTE DE ENERGÍA ELÉCTRICA POR DISTRIBUCIÓN TRONCAL - TRANSBA S.A.
F10: 2.- CONEXIÓN
F12: 2.1.- Transformación
B14: ='TOT-0316'!B14 -> Desde el 01 al 31 de Marzo de 2016
F16: Por Transformador por MVA $ = | I16: 1.31
F17: Coeficiente de penalización por salida forzada = | I17: =60*'TOT-0316'!B13 -> 60 | K17: =IF(I17=60," ",IF(I17=120," Coeficiente duplicado por tasa de falla >4 Sal. x año/100 km."," REVISAR COEFICIENTE")) -> 
C18: 3 | D18: 4 | E18: 5 | F18: 6 | G18: 7 | H18: 8 | I18: 9 | J18: 10 | K18: 11 | L18: 12 | M18: 13 | N18: 14 | O18: 15 | P18: 16 | Q18: 17 | R18: 18 | S18: 19 | T18: 20 | U18: 21 | V18: 22 | W18: 23 | X18: 24 | Y18: 25 | Z18: 26 | AA18: 27 | AB18: 28 | AC18: 29
C19: N° | D19: INDISP | E19: ID EQUIPO | F19: ESTACIÓN TRANSFORMADORA | G19: EQUIPO | H19: POT. [MVA] | I19: U [kV] | J19: $/h | K19: Salida | L19: Entrada | M19: Hs Indisp. | N19: Minutos. Indisp. | O19: Tipo Sal.(²) | P19: AUT. | Q19: C.R. % | R19: E.N.S. | S19: K (P y ENS) | T19: PENALIZ. PROGRAM. | U19: REDUCC. PROGRAM. | V19: PENALIZACIÓN FORZADA Por Salida hs. Restantes | X19: REDUCC. FORZADA Por Salida hs. Restantes | Z19: RESTANTE FORZADA | AA19: REDUCC. RESTANTE | AB19: Informó en Térm. | AC19: TOTAL PENALIZAC.
AC20: ='T-03 (1)'!AC42 -> 17221.33
C22: 108 | D22: 300261 | E22: 5424 | F22: LUJAN | G22: TRAFO 2 | H22: 40 | I22: 132/33/13,2 | J22: =H22*$I$16 -> 52.4 | K22: 2016-03-13T10:33:00 | L22: 2016-03-13T12:01:00 | M22: =IF(F22="","",(L22-K22)*24) -> 1.466666667 | N22: =IF(F22="","",ROUND((L22-K22)*24*60,0)) -> 88 | O22: P | P22: =IF(F22="","",IF(OR(O22="P",O22="RP"),"--","NO")) -> -- | Q22: =IF(F22="","","--") -> -- | R22: NO | S22: =$I$17*IF(OR(O22="P",O22="RP"),0.1,1)*IF(R22="SI",1,0.1) -> 0.6 | T22: =IF(O22="P",J22*S22*ROUND(N22/60,2),"--") -> 46.2168 | U22: =IF(O22="RP",J22*S22*ROUND(N22/60,2)*Q22/100,"--") -> -- | V22: =IF(AND(O22="F",P22="NO"),J22*S22,"--") -> -- | W22: =IF(O22="F",J22*S22*ROUND(N22/60,2),"--") -> -- | X22: =IF(AND(O22="R",P22="NO"),J22*S22*Q22/100,"--") -> -- | Y22: =IF(O22="R",J22*S22*ROUND(N22/60,2)*Q22/100,"--") -> -- | Z22: =IF(O22="RF",J22*S22*ROUND(N22/60,2),"--") -> -- | AA22: =IF(O22="RR",J22*S22*ROUND(N22/60,2)*Q22/100,"--") -> -- | AB22: =IF(F22="","","SI") -> SI | AC22: =IF(F22="","",SUM(T22:AA22)*IF(AB22="SI",1,2)*IF(AND(Q22<>"0,000",O22="RF"),Q22/100,1)) -> 46.2168
C23: 109 | D23: 300424 | E23: 2233 | F23: SAN ANTONIO DE ARECO | G23: TRAFO 1 | H23: 5 | I23: 66/13,2 | J23: 6.55 | K23: 2016-03-14T09:45:00 | L23: 2016-03-14T14:50:00 | M23: 5.083333333 | N23: 305 | O23: P | P23: -- | Q23: -- | R23: =IF(F23="","","NO") -> NO | S23: 0.6 | T23: 19.9644 | U23: -- | V23: -- | W23: -- | X23: -- | Y23: -- | Z23: -- | AA23: -- | AB23: SI | AC23: 19.9644
C24: 110 | D24: 300425 | E24: 2234 | F24: SAN ANTONIO DE ARECO | G24: TRAFO 2 | H24: 5 | I24: 66/13,2 | J24: 6.55 | K24: 2016-03-14T09:45:00 | L24: 2016-03-14T14:51:00 | M24: 5.1 | N24: 306 | O24: P | P24: -- | Q24: -- | R24: NO | S24: 0.6 | T24: 20.043 | U24: -- | V24: -- | W24: -- | X24: -- | Y24: -- | Z24: -- | AA24: -- | AB24: SI | AC24: 20.043
C25: 111 | D25: 300428 | E25: 3606 | F25: BALCARCE | G25: TRAFO 2 | H25: 30 | I25: 132/33/13,2 | J25: 39.3 | K25: 2016-03-14T15:00:00 | L25: 2016-03-14T16:13:00 | M25: 1.216666667 | N25: 73 | O25: F | P25: NO | Q25: -- | R25: NO | S25: 6 | T25: -- | U25: -- | V25: 235.8 | W25: 287.676 | X25: -- | Y25: -- | Z25: -- | AA25: -- | AB25: SI | AC25: 523.476
C26: 112 | D26: 300439 | E26: 2233 | F26: SAN ANTONIO DE ARECO | G26: TRAFO 1 | H26: 5 | I26: 66/13,2 | J26: 6.55 | K26: 2016-03-15T09:00:00 | L26: 2016-03-15T14:36:00 | M26: 5.6 | N26: 336 | O26: P | P26: -- | Q26: -- | R26: NO | S26: 0.6 | T26: 22.008 | U26: -- | V26: -- | W26: -- | X26: -- | Y26: -- | Z26: -- | AA26: -- | AB26: SI | AC26: 22.008
C27: 113 | D27: 300440 | E27: 2234 | F27: SAN ANTONIO DE ARECO | G27: TRAFO 2 | H27: 5 | I27: 66/13,2 | J27: 6.55 | K27: 2016-03-15T09:00:00 | L27: 2016-03-15T14:37:00 | M27: 5.616666667 | N27: 337 | O27: P | P27: -- | Q27: -- | R27: NO | S27: 0.6 | T27: 22.0866 | U27: -- | V27: -- | W27: -- | X27: -- | Y27: -- | Z27: -- | AA27: -- | AB27: SI | AC27: 22.0866
C28: 114 | D28: 300446 | E28: 2233 | F28: SAN ANTONIO DE ARECO | G28: TRAFO 1 | H28: 5 | I28: 66/13,2 | J28: 6.55 | K28: 2016-03-16T09:19:00 | L28: 2016-03-16T14:46:00 | M28: 5.45 | N28: 327 | O28: P | P28: -- | Q28: -- | R28: NO | S28: 0.6 | T28: 21.4185 | U28: -- | V28: -- | W28: -- | X28: -- | Y28: -- | Z28: -- | AA28: -- | AB28: SI | AC28: 21.4185
C29: 115 | D29: 300447 | E29: 2234 | F29: SAN ANTONIO DE ARECO | G29: TRAFO 2 | H29: 5 | I29: 66/13,2 | J29: 6.55 | K29: 2016-03-16T09:19:00 | L29: 2016-03-16T14:46:00 | M29: 5.45 | N29: 327 | O29: P | P29: -- | Q29: -- | R29: NO | S29: 0.6 | T29: 21.4185 | U29: -- | V29: -- | W29: -- | X29: -- | Y29: -- | Z29: -- | AA29: -- | AB29: SI | AC29: 21.4185
C30: 116 | D30: 300466 | E30: 2431 | F30: VILLA GESELL | G30: TRAFO 3 | H30: 40 | I30: 132/13,2 | J30: 52.4 | K30: 2016-03-18T09:32:00 | L30: 2016-03-18T10:53:00 | M30: 1.35 | N30: 81 | O30: P | P30: -- | Q30: -- | R30: NO | S30: 0.6 | T30: =IF(O30="P",J30*S30*ROUND(N30/60,2),"--") -> 42.444 | U30: =IF(O30="RP",J30*S30*ROUND(N30/60,2)*Q30/100,"--") -> -- | V30: =IF(AND(O30="F",P30="NO"),J30*S30,"--") -> -- | W30: =IF(O30="F",J30*S30*ROUND(N30/60,2),"--") -> -- | X30: =IF(AND(O30="R",P30="NO"),J30*S30*Q30/100,"--") -> -- | Y30: =IF(O30="R",J30*S30*ROUND(N30/60,2)*Q30/100,"--") -> -- | Z30: =IF(O30="RF",J30*S30*ROUND(N30/60,2),"--") -> -- | AA30: =IF(O30="RR",J30*S30*ROUND(N30/60,2)*Q30/100,"--") -> -- | AB30: =IF(F30="","","SI") -> SI | AC30: =IF(F30="","",SUM(T30:AA30)*IF(AB30="SI",1,2)*IF(AND(Q30<>"0,000",O30="RF"),Q30/100,1)) -> 42.444
C31: 117 | D31: 300470 | E31: 5758 | F31: PUNTA ALTA | G31: TRAFO 1 | H31: 20 | I31: 132/22/13,2 | J31: 26.2 | K31: 2016-03-18T10:14:00 | L31: 2016-03-18T18:59:00 | M31: 8.75 | N31: 525 | O31: P | P31: -- | Q31: -- | R31: NO | S31: 0.6 | T31: 137.55 | U31: -- | V31: -- | W31: -- | X31: -- | Y31: -- | Z31: -- | AA31: -- | AB31: SI | AC31: 137.55
C32: 118 | D32: 300473 | E32: 2187 | F32: CARLOS CASARES | G32: TRAFO 2 | H32: 5 | I32: 66/13,2 | J32: 6.55 | K32: 2016-03-20T08:03:00 | L32: 2016-03-20T18:51:00 | M32: 10.8 | N32: 648 | O32: P | P32: -- | Q32: -- | R32: NO | S32: 0.6 | T32: 42.444 | U32: -- | V32: -- | W32: -- | X32: -- | Y32: -- | Z32: -- | AA32: -- | AB32: SI | AC32: 42.444
C33: 119 | D33: 300476 | E33: 2136 | F33: ARRECIFES | G33: TRAFO1 | H33: 10 | I33: 66/13,2 | J33: 13.1 | K33: 2016-03-20T08:45:00 | L33: 2016-03-20T16:16:00 | M33: 7.516666667 | N33: 451 | O33: P | P33: -- | Q33: -- | R33: NO | S33: 0.6 | T33: 59.1072 | U33: -- | V33: -- | W33: -- | X33: -- | Y33: -- | Z33: -- | AA33: -- | AB33: SI | AC33: 59.1072
C34: 120 | D34: 300646 | E34: 2465 | F34: MAR DEL TUYU | G34: TRAFO1 | H34: 20 | I34: 132/33/13,2 | J34: 26.2 | K34: 2016-03-22T08:52:00 | L34: 2016-03-23T17:53:00 | M34: 33.01666667 | N34: 1981 | O34: P | P34: -- | Q34: -- | R34: NO | S34: 0.6 | T34: 519.0744 | U34: -- | V34: -- | W34: -- | X34: -- | Y34: -- | Z34: -- | AA34: -- | AB34: SI | AC34: 519.0744
C35: 121 | D35: 300648 | E35: 2258 | F35: HENDERSON | G35: TRAFO 4 | H35: 40 | I35: 220/132/13,2 | J35: 52.4 | K35: 2016-03-22T09:39:00 | L35: 2016-03-22T14:37:00 | M35: 4.966666667 | N35: 298 | O35: P | P35: -- | Q35: -- | R35: NO | S35: 0.6 | T35: 156.2568 | U35: -- | V35: -- | W35: -- | X35: -- | Y35: -- | Z35: -- | AA35: -- | AB35: SI | AC35: 156.2568
C36: 122 | D36: 300649 | E36: 2070 | F36: ZARATE | G36: TRAFO 1 | H36: 15 | I36: 132/33/132,2 | J36: 19.65 | K36: 2016-03-22T09:39:00 | L36: 2016-03-22T14:37:00 | M36: 4.966666667 | N36: 298 | O36: P | P36: -- | Q36: -- | R36: NO | S36: 0.6 | T36: 58.5963 | U36: -- | V36: -- | W36: -- | X36: -- | Y36: -- | Z36: -- | AA36: -- | AB36: SI | AC36: 58.5963
C37: 123 | D37: 300650 | E37: 2138 | F37: ARRECIFES | G37: TRAFO 2 | H37: 5 | I37: 66/33 | J37: 6.55 | K37: 2016-03-22T10:00:00 | L37: 2016-03-22T15:19:00 | M37: 5.316666667 | N37: 319 | O37: P | P37: -- | Q37: -- | R37: NO | S37: 0.6 | T37: 20.9076 | U37: -- | V37: -- | W37: -- | X37: -- | Y37: -- | Z37: -- | AA37: -- | AB37: SI | AC37: 20.9076
C38: 124 | D38: 300654 | E38: 2070 | F38: ZARATE | G38: TRAFO 1 | H38: 15 | I38: 132/33/13,2 | J38: 19.65 | K38: 2016-03-23T08:03:00 | L38: 2016-03-23T14:16:00 | M38: 6.216666667 | N38: 373 | O38: P | P38: -- | Q38: -- | R38: NO | S38: 0.6 | T38: 73.3338 | U38: -- | V38: -- | W38: -- | X38: -- | Y38: -- | Z38: -- | AA38: -- | AB38: SI | AC38: 73.3338
C39: 125 | D39: 300656 | E39: 2258 | F39: HENDERSON | G39: TRAFO 4 | H39: 40 | I39: 220/132/13,2 | J39: 52.4 | K39: 2016-03-23T08:28:00 | L39: 2016-03-23T14:33:00 | M39: 6.083333333 | N39: 365 | O39: P | P39: -- | Q39: -- | R39: NO | S39: 0.6 | T39: 191.1552 | U39: -- | V39: -- | W39: -- | X39: -- | Y39: -- | Z39: -- | AA39: -- | AB39: SI | AC39: 191.1552
C40: 126 | D40: 300661 | E40: 2172 | F40: BRAGADO | G40: TRAFO 2 | H40: 150 | I40: 220/132/13,2 | J40: 196.5 | K40: 2016-03-24T07:53:00 | L40: 2016-03-24T15:40:00 | M40: 7.783333333 | N40: 467 | O40: P | P40: -- | Q40: =IF(F40="","","--") -> -- | R40: NO | S40: 0.6 | T40: 917.262 | U40: -- | V40: -- | W40: -- | X40: -- | Y40: -- | Z40: -- | AA40: -- | AB40: SI | AC40: 917.262
C42: (²) | D42: P - PROGRAMADA ; F - FORZADA | T42: =SUM(T20:T41) -> 2391.2871 | U42: =SUM(U20:U41) -> 0 | V42: =SUM(V20:V41) -> 235.8 | W42: =SUM(W22:W41) -> 287.676 | X42: =SUM(X20:X41) -> 0 | Y42: =SUM(Y22:Y41) -> 0 | Z42: =SUM(Z20:Z41) -> 0 | AA42: =SUM(AA22:AA41) -> 0 | AC42: =ROUND(SUM(AC20:AC41),2) -> 20136.09

Sheet T-03 (3)
B2: ='TOT-0316'!B2 -> ANEXO IV al Memorándum D.T.E.E. N° 243/ 2017
A4: ENTE NACIONAL REGULADOR
A5: DE LA ELECTRICIDAD
F8: SISTEMA DE TRANSPORTE DE ENERGÍA ELÉCTRICA POR DISTRIBUCIÓN TRONCAL - TRANSBA S.A.
F10: 2.- CONEXIÓN
F12: 2.1.- Transformación
B14: ='TOT-0316'!B14 -> Desde el 01 al 31 de Marzo de 2016
F16: Por Transformador por MVA $ = | I16: 1.31
F17: Coeficiente de penalización por salida forzada = | I17: =60*'TOT-0316'!B13 -> 60 | K17: =IF(I17=60," ",IF(I17=120," Coeficiente duplicado por tasa de falla >4 Sal. x año/100 km."," REVISAR COEFICIENTE")) -> 
C18: 3 | D18: 4 | E18: 5 | F18: 6 | G18: 7 | H18: 8 | I18: 9 | J18: 10 | K18: 11 | L18: 12 | M18: 13 | N18: 14 | O18: 15 | P18: 16 | Q18: 17 | R18: 18 | S18: 19 | T18: 20 | U18: 21 | V18: 22 | W18: 23 | X18: 24 | Y18: 25 | Z18: 26 | AA18: 27 | AB18: 28 | AC18: 29
C19: N° | D19: INDISP | E19: ID EQUIPO | F19: ESTACIÓN TRANSFORMADORA | G19: EQUIPO | H19: POT. [MVA] | I19: U [kV] | J19: $/h | K19: Salida | L19: Entrada | M19: Hs Indisp. | N19: Minutos. Indisp. | O19: Tipo Sal.(²) | P19: AUT. | Q19: C.R. % | R19: E.N.S. | S19: K (P y ENS) | T19: PENALIZ. PROGRAM. | U19: REDUCC. PROGRAM. | V19: PENALIZACIÓN FORZADA Por Salida hs. Restantes | X19: REDUCC. FORZADA Por Salida hs. Restantes | Z19: RESTANTE FORZADA | AA19: REDUCC. RESTANTE | AB19: Informó en Térm. | AC19: TOTAL PENALIZAC.
AC20: ='T-03 (2)'!AC42 -> 20136.09
C22: 127 | D22: 300663 | E22: 2172 | F22: BRAGADO | G22: TRAFO 2 | H22: 150 | I22: 220/132/13,2 | J22: =H22*$I$16 -> 196.5 | K22: 2016-03-25T08:41:00 | L22: 2016-03-25T15:21:00 | M22: =IF(F22="","",(L22-K22)*24) -> 6.666666667 | N22: =IF(F22="","",ROUND((L22-K22)*24*60,0)) -> 400 | O22: P | P22: =IF(F22="","",IF(OR(O22="P",O22="RP"),"--","NO")) -> -- | Q22: =IF(F22="","","--") -> -- | R22: NO | S22: =$I$17*IF(OR(O22="P",O22="RP"),0.1,1)*IF(R22="SI",1,0.1) -> 0.6 | T22: =IF(O22="P",J22*S22*ROUND(N22/60,2),"--") -> 786.393 | U22: =IF(O22="RP",J22*S22*ROUND(N22/60,2)*Q22/100,"--") -> -- | V22: =IF(AND(O22="F",P22="NO"),J22*S22,"--") -> -- | W22: =IF(O22="F",J22*S22*ROUND(N22/60,2),"--") -> -- | X22: =IF(AND(O22="R",P22="NO"),J22*S22*Q22/100,"--") -> -- | Y22: =IF(O22="R",J22*S22*ROUND(N22/60,2)*Q22/100,"--") -> -- | Z22: =IF(O22="RF",J22*S22*ROUND(N22/60,2),"--") -> -- | AA22: =IF(O22="RR",J22*S22*ROUND(N22/60,2)*Q22/100,"--") -> -- | AB22: =IF(F22="","","SI") -> SI | AC22: =IF(F22="","",SUM(T22:AA22)*IF(AB22="SI",1,2)*IF(AND(Q22<>"0,000",O22="RF"),Q22/100,1)) -> 786.393
C24: 129 | D24: 300863 | E24: 2095 | F24: SAN NICOLAS URBANA | G24: TRAFO 1 | H24: 44 | I24: 132/13,2/13,2 | J24: 57.64 | K24: 2016-03-28T08:24:00 | L24: 2016-03-28T14:26:00 | M24: 6.033333333 | N24: 362 | O24: P | P24: -- | Q24: -- | R24: NO | S24: 0.6 | T24: 208.54152 | U24: -- | V24: -- | W24: -- | X24: -- | Y24: -- | Z24: -- | AA24: -- | AB24: SI | AC24: =IF(F24="","",SUM(T24:AA24)*IF(AB24="SI",1,2)*IF(AND(Q24<>"0,000",O24="RF"),Q24/100,1)) -> 208.54152
C25: 130 | D25: 300864 | E25: 2459 | F25: SAN CLEMENTE | G25: TRAFO 2 | H25: 15 | I25: 132/33/13,2 | J25: 19.65 | K25: 2016-03-28T09:59:00 | L25: 2016-03-28T17:45:00 | M25: 7.766666667 | N25: 466 | O25: P | P25: -- | Q25: -- | R25: NO | S25: 0.6 | T25: 91.6083 | U25: -- | V25: -- | W25: -- | X25: -- | Y25: -- | Z25: -- | AA25: -- | AB25: SI | AC25: 91.6083
C26: 131 | D26: 300865 | E26: 2069 | F26: VILLA LIA | G26: TRAFO 1 | H26: 150 | I26: 220/132/13,2 | J26: 196.5 | K26: 2016-03-28T10:51:00 | L26: 2016-03-28T14:50:00 | M26: 3.983333333 | N26: 239 | O26: P | P26: -- | Q26: -- | R26: NO | S26: 0.6 | T26: 469.242 | U26: -- | V26: -- | W26: -- | X26: -- | Y26: -- | Z26: -- | AA26: -- | AB26: SI | AC26: 469.242
C27: 132 | D27: 300867 | E27: 2095 | F27: SAN NICOLAS URBANA | G27: TRAFO 1 | H27: 44 | I27: 132/13,2/13,2 | J27: 57.64 | K27: 2016-03-29T08:09:00 | L27: 2016-03-29T14:18:00 | M27: 6.15 | N27: 369 | O27: P | P27: -- | Q27: -- | R27: NO | S27: 0.6 | T27: 212.6916 | U27: -- | V27: -- | W27: -- | X27: -- | Y27: -- | Z27: -- | AA27: -- | AB27: SI | AC27: 212.6916
C28: 133 | D28: 300868 | E28: 2547 | F28: CNEL. SUAREZ | G28: TRAFO 1 | H28: 15 | I28: 132/33/13,2 | J28: 19.65 | K28: 2016-03-29T08:18:00 | L28: 2016-03-29T17:33:00 | M28: 9.25 | N28: 555 | O28: P | P28: -- | Q28: -- | R28: NO | S28: 0.6 | T28: 109.0575 | U28: -- | V28: -- | W28: -- | X28: -- | Y28: -- | Z28: -- | AA28: -- | AB28: SI | AC28: 109.0575
C29: 134 | D29: 300869 | E29: 2139 | F29: ARRECIFES | G29: TRAFO 5 | H29: 5 | I29: 66/33 | J29: 6.55 | K29: 2016-03-29T08:34:00 | L29: 2016-03-29T15:59:00 | M29: 7.416666667 | N29: 445 | O29: P | P29: -- | Q29: -- | R29: NO | S29: 0.6 | T29: 29.1606 | U29: -- | V29: -- | W29: -- | X29: -- | Y29: -- | Z29: -- | AA29: -- | AB29: SI | AC29: 29.1606
C30: 135 | D30: 300870 | E30: 2458 | F30: SAN CLEMENTE | G30: TRAFO 1 | H30: 15 | I30: 132/33/13,2 | J30: 19.65 | K30: 2016-03-29T08:38:00 | L30: 2016-03-29T17:01:00 | M30: 8.383333333 | N30: 503 | O30: P | P30: -- | Q30: -- | R30: NO | S30: =$I$17*IF(OR(O30="P",O30="RP"),0.1,1)*IF(R30="SI",1,0.1) -> 0.6 | T30: =IF(O30="P",J30*S30*ROUND(N30/60,2),"--") -> 98.8002 | U30: =IF(O30="RP",J30*S30*ROUND(N30/60,2)*Q30/100,"--") -> -- | V30: =IF(AND(O30="F",P30="NO"),J30*S30,"--") -> -- | W30: =IF(O30="F",J30*S30*ROUND(N30/60,2),"--") -> -- | X30: =IF(AND(O30="R",P30="NO"),J30*S30*Q30/100,"--") -> -- | Y30: =IF(O30="R",J30*S30*ROUND(N30/60,2)*Q30/100,"--") -> -- | Z30: =IF(O30="RF",J30*S30*ROUND(N30/60,2),"--") -> -- | AA30: =IF(O30="RR",J30*S30*ROUND(N30/60,2)*Q30/100,"--") -> -- | AB30: SI | AC30: 98.8002
C31: 136 | D31: 300877 | E31: 2069 | F31: VILLA LIA | G31: TRAFO 1 | H31: 150 | I31: 220/132/13,2 | J31: 196.5 | K31: 2016-03-29T10:03:00 | L31: 2016-03-29T15:05:00 | M31: 5.033333333 | N31: 302 | O31: P | P31: -- | Q31: -- | R31: NO | S31: 0.6 | T31: 593.037 | U31: -- | V31: -- | W31: -- | X31: -- | Y31: -- | Z31: -- | AA31: -- | AB31: SI | AC31: 593.037
C32: 137 | D32: 300885 | E32: 2095 | F32: SAN NICOLAS URBANA | G32: TRAFO 1 | H32: 44 | I32: 132/13,2/13,2 | J32: 57.64 | K32: 2016-03-30T08:11:00 | L32: 2016-03-30T16:22:00 | M32: 8.183333333 | N32: 491 | O32: P | P32: -- | Q32: -- | R32: NO | S32: 0.6 | T32: 282.89712 | U32: -- | V32: -- | W32: -- | X32: -- | Y32: -- | Z32: -- | AA32: -- | AB32: SI | AC32: 282.89712
C33: 138 | D33: 300886 | E33: 2547 | F33: CNEL. SUAREZ | G33: TRAFO 1 | H33: 15 | I33: 132/33/13,2 | J33: 19.65 | K33: 2016-03-30T08:24:00 | L33: 2016-03-30T17:19:00 | M33: 8.916666667 | N33: 535 | O33: P | P33: -- | Q33: =IF(F33="","","--") -> -- | R33: =IF(F33="","","NO") -> NO | S33: 0.6 | T33: 105.1668 | U33: -- | V33: -- | W33: -- | X33: -- | Y33: -- | Z33: -- | AA33: -- | AB33: SI | AC33: 105.1668
C34: 139 | D34: 300889 | E34: 4963 | F34: TRES ARROYOS | G34: TRAFO 1 | H34: 30 | I34: 132/33/13,2 | J34: 39.3 | K34: 2016-03-30T08:55:00 | L34: 2016-03-30T10:00:00 | M34: 1.083333333 | N34: 65 | O34: P | P34: -- | Q34: -- | R34: NO | S34: 0.6 | T34: 25.4664 | U34: -- | V34: -- | W34: -- | X34: -- | Y34: -- | Z34: -- | AA34: -- | AB34: SI | AC34: 25.4664
C35: 140 | D35: 300891 | E35: 2458 | F35: SAN CLEMENTE | G35: TRAFO 1 | H35: 15 | I35: 132/33/13,2 | J35: 19.65 | K35: 2016-03-30T09:12:00 | L35: 2016-03-30T17:38:00 | M35: 8.433333333 | N35: 506 | O35: P | P35: -- | Q35: -- | R35: NO | S35: 0.6 | T35: 99.3897 | U35: -- | V35: -- | W35: -- | X35: -- | Y35: -- | Z35: -- | AA35: -- | AB35: SI | AC35: 99.3897
C36: 141 | D36: 300896 | E36: 2548 | F36: CNEL. SUAREZ | G36: TRAFO 2 | H36: 15 | I36: 132/33/13,2 | J36: 19.65 | K36: 2016-03-31T08:40:00 | L36: 2016-03-31T17:28:00 | M36: 8.8 | N36: 528 | O36: P | P36: -- | Q36: -- | R36: NO | S36: 0.6 | T36: 103.752 | U36: -- | V36: -- | W36: -- | X36: -- | Y36: -- | Z36: -- | AA36: -- | AB36: SI | AC36: 103.752
C37: 142 | D37: 300897 | E37: 2459 | F37: SAN CLEMENTE | G37: TRAFO 2 | H37: 15 | I37: 132/33/13,2 | J37: 19.65 | K37: 2016-03-31T08:47:00 | L37: 2016-03-31T17:25:00 | M37: 8.633333333 | N37: 518 | O37: P | P37: -- | Q37: -- | R37: NO | S37: 0.6 | T37: 101.7477 | U37: -- | V37: -- | W37: -- | X37: -- | Y37: -- | Z37: -- | AA37: -- | AB37: SI | AC37: 101.7477
J38: 0 | R38: =IF(F38="","","NO") ->  | S38: 6 | T38: -- | U38: -- | V38: -- | W38: -- | X38: -- | Y38: -- | Z38: -- | AA38: --
J39: 0 | S39: 6 | T39: -- | U39: -- | V39: -- | W39: -- | X39: -- | Y39: -- | Z39: -- | AA39: --
J40: 0 | S40: 6 | T40: -- | U40: -- | V40: -- | W40: -- | X40: -- | Y40: -- | Z40: -- | AA40: -- | AB40: =IF(F40="","","SI") -> 
J41: 0 | S41: 6 | T41: -- | U41: -- | V41: -- | W41: -- | X41: -- | Y41: -- | Z41: -- | AA41: --
C43: (²) | D43: P - PROGRAMADA ; F - FORZADA ; R - REDUCCIÓN FORZADA | T43: =SUM(T20:T42) -> 3316.95144 | U43: =SUM(U20:U42) -> 0 | V43: =SUM(V20:V42) -> 0 | W43: =SUM(W22:W42) -> 0 | X43: =SUM(X20:X42) -> 0 | Y43: =SUM(Y22:Y42) -> 0 | Z43: =SUM(Z20:Z42) -> 0 | AA43: =SUM(AA22:AA42) -> 0 | AC43: =ROUND(SUM(AC20:AC42),2) -> 23453.04

Sheet SA-03 (1)
B2: ='TOT-0316'!B2 -> ANEXO IV al Memorándum D.T.E.E. N° 243/ 2017
A4: ENTE NACIONAL REGULADOR
A5: DE LA ELECTRICIDAD
F8: SISTEMA DE TRANSPORTE DE ENERGÍA ELÉCTRICA POR DISTRIBUCIÓN TRONCAL - TRANSBA S.A.
F10: 2.2.- Salidas
B12: ='TOT-0316'!B14 -> Desde el 01 al 31 de Marzo de 2016
F14: Salida en 220 kV | G14: 34.93 | H14: =60*'TOT-0316'!B13 -> 60 | J14: =IF(H14=60," ",IF(H14=120," Coeficiente duplicado por tasa de falla >4 Sal. x año/100 km."," REVISAR COEFICIENTE")) -> 
F15: Salida en 132 kV o 66 kV = | G15: 17.466 | H15: =50*'TOT-0316'!B13 -> 50 | J15: =IF(H15=50," ",IF(H15=100," Coeficiente duplicado por tasa de falla >4 Sal. x año/100 km."," REVISAR COEFICIENTE")) -> 
F16: Salida en 33 kV | G16: 13.097 | H16: =50*'TOT-0316'!B13 -> 50 | J16: =IF(H16=50," ",IF(H16=100," Coeficiente duplicado por tasa de falla >4 Sal. x año/100 km."," REVISAR COEFICIENTE")) -> 
F17: Salida en 13,2 kV = | G17: 13.097 | H17: =40*'TOT-0316'!B13 -> 40 | J17: =IF(H17=40," ",IF(H17=80," Coeficiente duplicado por tasa de falla >4 Sal. x año/100 km."," REVISAR COEFICIENTE")) -> 
C18: 3 | D18: 4 | E18: 5 | F18: 6 | G18: 7 | H18: 8 | I18: 9 | J18: 10 | K18: 11 | L18: 12 | M18: 13 | N18: 14 | O18: 15 | P18: 16 | Q18: 17 | R18: 18 | S18: 19 | T18: 20 | U18: 21 | V18: 22
C19: N° | D19: INDISP | E19: ID EQUIPO | F19: ESTACIÓN TRANSFORMADORA | G19: EQUIPO | H19: U [kV] | I19: $/h | J19: Salida | K19: Entrada | L19: Hs Indisp. | M19: Minutos. Indisp. | N19: Tipo Sal.(²) | O19: AUT. | P19: K (U) | Q19: PENALIZAC. PROGRAM. | R19: PENALIZACIÓN FORZADA Por Salida hs. Restantes | T19: RESTANTE FORZADA | U19: Informó en Térm. | V19: TOTAL PENALIZAC.
C22: 143 | D22: 299957 | E22: 2243 | F22: SALADILLO | G22: SALIDA 2 A SALADILLO | H22: 13.2 | I22: =IF(H22=220,$G$14,IF(AND(H22<=132,H22>=66),$G$15,IF(AND(H22<66,H22>=33),$G$16,$G$17))) -> 13.097 | J22: 2016-03-03T13:26:00 | K22: 2016-03-03T14:02:00 | L22: =IF(F22="","",(K22-J22)*24) -> 0.6 | M22: =IF(F22="","",ROUND((K22-J22)*24*60,0)) -> 36 | N22: P | O22: =IF(F22="","",IF(OR(N22="P",N22="RP"),"--","NO")) -> -- | P22: =IF(H22=220,$H$14,IF(AND(H22<=132,H22>=66),$H$15,IF(AND(H22<66,H22>13.2),$H$16,$H$17))) -> 40 | Q22: =IF(N22="P",I22*P22*ROUND(M22/60,2)*0.1,"--") -> 31.4328 | R22: =IF(AND(N22="F",O22="NO"),I22*P22,"--") -> -- | S22: =IF(N22="F",I22*P22*ROUND(M22/60,2),"--") -> -- | T22: =IF(N22="RF",I22*P22*ROUND(M22/60,2),"--") -> -- | U22: SI | V22: =IF(F22="","",SUM(Q22:T22)*IF(U22="SI",1,2)*IF(H22="500/220",0,1)) -> 31.4328
C23: 144 | D23: 299958 | E23: 2245 | F23: SALADILLO | G23: SALIDA 6 A SALADILLO | H23: 13.2 | I23: 13.097 | J23: 2016-03-03T14:05:00 | K23: 2016-03-03T14:57:00 | L23: 0.8666666667 | M23: 52 | N23: P | O23: -- | P23: 40 | Q23: 45.57756 | R23: -- | S23: -- | T23: -- | U23: SI | V23: 45.57756
C24: 145 | D24: 299776 | E24: 2317 | F24: TANDIL | G24: SALIDA 4 A COOP. TANDIL | H24: 13.2 | I24: 13.097 | J24: 2016-03-04T10:11:00 | K24: 2016-03-04T14:12:00 | L24: 4.016666667 | M24: 241 | N24: P | O24: -- | P24: 40 | Q24: 210.59976 | R24: -- | S24: -- | T24: -- | U24: SI | V24: 210.59976
C26: 147 | D26: 300219 | E26: 2345 | F26: QUEQUEN | G26: SALIDA A LA DULCE | H26: 33 | I26: 13.097 | J26: 2016-03-08T07:56:00 | K26: 2016-03-08T14:30:00 | L26: 6.566666667 | M26: 394 | N26: P | O26: -- | P26: 50 | Q26: 430.23645 | R26: -- | S26: -- | T26: -- | U26: SI | V26: 430.23645
C27: 148 | D27: 300226 | E27: 2357 | F27: BALCARCE | G27: SALIDA 3 A COOP. BALCARCE | H27: 13.2 | I27: 13.097 | J27: 2016-03-08T10:40:00 | K27: 2016-03-08T17:28:00 | L27: 6.8 | M27: 408 | N27: P | O27: -- | P27: 40 | Q27: 356.2384 | R27: -- | S27: -- | T27: -- | U27: SI | V27: 356.2384
C28: 149 | D28: 300228 | E28: 2118 | F28: ROJAS | G28: SALIDA 2 A COOP. ROJAS | H28: 13.2 | I28: 13.097 | J28: 2016-03-08T11:54:00 | K28: 2016-03-08T15:52:00 | L28: 3.966666667 | M28: 238 | N28: P | O28: -- | P28: 40 | Q28: 207.98036 | R28: -- | S28: -- | T28: -- | U28: SI | V28: 207.98036
C29: 150 | D29: 300229 | E29: 2508 | F29: PUNTA ALTA | G29: SALIDA 5 A COOP. PUNTA ALTA | H29: 13.2 | I29: 13.097 | J29: 2016-03-08T12:48:00 | K29: 2016-03-08T13:00:00 | L29: 0.2 | M29: 12 | N29: F | O29: NO | P29: 40 | Q29: -- | R29: 523.88 | S29: 104.776 | T29: -- | U29: SI | V29: 628.656
C30: 151 | D30: 300230 | E30: 2344 | F30: QUEQUEN | G30: SALIDA A LOBERÍA PIERES | H30: 33 | I30: 13.097 | J30: 2016-03-09T07:59:00 | K30: 2016-03-09T15:40:00 | L30: 7.683333333 | M30: 461 | N30: P | O30: -- | P30: 50 | Q30: 502.9248 | R30: -- | S30: -- | T30: -- | U30: SI | V30: 502.9248
C31: 152 | D31: 300237 | E31: 2249 | F31: LINCOLN | G31: SALIDA A PINTO | H31: 33 | I31: 13.097 | J31: 2016-03-10T07:56:00 | K31: 2016-03-10T14:32:00 | L31: 6.6 | M31: 396 | N31: P | O31: -- | P31: 50 | Q31: 432.201 | R31: -- | S31: -- | T31: -- | U31: SI | V31: 432.201
C32: 153 | D32: 300240 | E32: 2222 | F32: LUJAN | G32: SALIDA A CAP. DEL SEÑOR | H32: 33 | I32: 13.097 | J32: 2016-03-10T08:35:00 | K32: 2016-03-10T12:44:00 | L32: 4.15 | M32: 249 | N32: P | O32: -- | P32: 50 | Q32: 271.76275 | R32: -- | S32: -- | T32: -- | U32: SI | V32: 271.76275
C33: 154 | D33: 300249 | E33: 2549 | F33: SUAREZ | G33: SALIDA A A. CORTO | H33: 33 | I33: 13.097 | J33: 2016-03-11T08:41:00 | K33: 2016-03-11T18:50:00 | L33: 10.15 | M33: 609 | N33: P | O33: -- | P33: 50 | Q33: 664.67275 | R33: -- | S33: -- | T33: -- | U33: SI | V33: 664.67275
C34: 155 | D34: 300252 | E34: 2290 | F34: CHACABUCO | G34: SALIDA 1 A CHACABUCO | H34: 13.2 | I34: 13.097 | J34: 2016-03-11T09:05:00 | K34: 2016-03-11T12:26:00 | L34: 3.35 | M34: 201 | N34: P | O34: -- | P34: 40 | Q34: 175.4998 | R34: -- | S34: -- | T34: -- | U34: SI | V34: 175.4998
C35: 156 | D35: 300256 | E35: 2293 | F35: CHACABUCO | G35: SALIDA 6 A CHACABUCO | H35: 13.2 | I35: 13.097 | J35: 2016-03-11T11:35:00 | K35: 2016-03-11T15:06:00 | L35: 3.516666667 | M35: 211 | N35: P | O35: -- | P35: 40 | Q35: 184.40576 | R35: -- | S35: -- | T35: -- | U35: SI | V35: 184.40576
C36: 157 | D36: 300257 | E36: 4205 | F36: SALTO | G36: SALIDA 2 A ARRECIFES | H36: 33 | I36: 13.097 | J36: 2016-03-11T11:50:00 | K36: 2016-03-11T14:26:00 | L36: 2.6 | M36: 156 | N36: P | O36: -- | P36: 50 | Q36: 170.261 | R36: -- | S36: -- | T36: -- | U36: SI | V36: 170.261
C37: 158 | D37: 300433 | E37: 2344 | F37: QUEQUEN | G37: SALIDA A LOBERÍA PIERES | H37: 33 | I37: 13.097 | J37: 2016-03-15T07:40:00 | K37: 2016-03-15T13:35:00 | L37: 5.916666667 | M37: 355 | N37: P | O37: -- | P37: 50 | Q37: 387.6712 | R37: -- | S37: -- | T37: -- | U37: SI | V37: 387.6712
C38: 159 | D38: 300434 | E38: 2267 | F38: HENDERSON | G38: SALIDA A URDAMPILLETA | H38: 33 | I38: 13.097 | J38: 2016-03-15T07:49:00 | K38: 2016-03-15T15:31:00 | L38: 7.7 | M38: 462 | N38: P | O38: -- | P38: 50 | Q38: 504.2345 | R38: -- | S38: -- | T38: -- | U38: SI | V38: 504.2345
C39: 160 | D39: 300437 | E39: 2355 | F39: BALCARCE | G39: SALIDA 1 A COOP. BALCARCE | H39: 13.2 | I39: 13.097 | J39: 2016-03-15T08:40:00 | K39: 2016-03-15T15:15:00 | L39: 6.583333333 | M39: 395 | N39: P | O39: -- | P39: 40 | Q39: 344.71304 | R39: -- | S39: -- | T39: -- | U39: SI | V39: 344.71304
I40: 13.097 | P40: 40 | Q40: -- | R40: -- | S40: -- | T40: -- | U40: =IF(F40="","","SI") -> 
C42: (²) | D42: P - PROGRAMADA ; F - FORZADA | Q42: =SUM(Q20:Q41) -> 4920.41193 | R42: =SUM(R20:R41) -> 523.88 | S42: =SUM(S20:S41) -> 104.776 | T42: =SUM(T20:T41) -> 0 | V42: =ROUND(SUM(V20:V41),2) -> 5549.07

Sheet SA-03 (2)
B2: ='TOT-0316'!B2 -> ANEXO IV al Memorándum D.T.E.E. N° 243/ 2017
A4: ENTE NACIONAL REGULADOR
A5: DE LA ELECTRICIDAD
F8: SISTEMA DE TRANSPORTE DE ENERGÍA ELÉCTRICA POR DISTRIBUCIÓN TRONCAL - TRANSBA S.A.
F10: 2.2.- Salidas
B12: ='TOT-0316'!B14 -> Desde el 01 al 31 de Marzo de 2016
F14: Salida en 220 kV | G14: 34.93 | H14: =60*'TOT-0316'!B13 -> 60 | J14: =IF(H14=60," ",IF(H14=120," Coeficiente duplicado por tasa de falla >4 Sal. x año/100 km."," REVISAR COEFICIENTE")) -> 
F15: Salida en 132 kV o 66 kV = | G15: 17.466 | H15: =50*'TOT-0316'!B13 -> 50 | J15: =IF(H15=50," ",IF(H15=100," Coeficiente duplicado por tasa de falla >4 Sal. x año/100 km."," REVISAR COEFICIENTE")) -> 
F16: Salida en 33 kV | G16: 13.097 | H16: =50*'TOT-0316'!B13 -> 50 | J16: =IF(H16=50," ",IF(H16=100," Coeficiente duplicado por tasa de falla >4 Sal. x año/100 km."," REVISAR COEFICIENTE")) -> 
F17: Salida en 13,2 kV = | G17: 13.097 | H17: =40*'TOT-0316'!B13 -> 40 | J17: =IF(H17=40," ",IF(H17=80," Coeficiente duplicado por tasa de falla >4 Sal. x año/100 km."," REVISAR COEFICIENTE")) -> 
C18: 3 | D18: 4 | E18: 5 | F18: 6 | G18: 7 | H18: 8 | I18: 9 | J18: 10 | K18: 11 | L18: 12 | M18: 13 | N18: 14 | O18: 15 | P18: 16 | Q18: 17 | R18: 18 | S18: 19 | T18: 20 | U18: 21 | V18: 22
C19: N° | D19: INDISP | E19: ID EQUIPO | F19: ESTACIÓN TRANSFORMADORA | G19: EQUIPO | H19: U [kV] | I19: $/h | J19: Salida | K19: Entrada | L19: Hs Indisp. | M19: Minutos. Indisp. | N19: Tipo Sal.(²) | O19: AUT. | P19: K (U) | Q19: PENALIZAC. PROGRAM. | R19: PENALIZACIÓN FORZADA Por Salida hs. Restantes | T19: RESTANTE FORZADA | U19: Informó en Térm. | V19: TOTAL PENALIZAC.
V20: ='SA-03 (1)'!V42 -> 5549.07
C22: 161 | D22: 300438 | E22: 2105 | F22: SAN NICOLAS URBANA | G22: SALIDA 9 | H22: 13.2 | I22: =IF(H22=220,$G$14,IF(AND(H22<=132,H22>=66),$G$15,IF(AND(H22<66,H22>=33),$G$16,$G$17))) -> 13.097 | J22: 2016-03-15T08:58:00 | K22: 2016-03-15T12:49:00 | L22: =IF(F22="","",(K22-J22)*24) -> 3.85 | M22: =IF(F22="","",ROUND((K22-J22)*24*60,0)) -> 231 | N22: P | O22: =IF(F22="","",IF(OR(N22="P",N22="RP"),"--","NO")) -> -- | P22: =IF(H22=220,$H$14,IF(AND(H22<=132,H22>=66),$H$15,IF(AND(H22<66,H22>13.2),$H$16,$H$17))) -> 40 | Q22: =IF(N22="P",I22*P22*ROUND(M22/60,2)*0.1,"--") -> 201.6938 | R22: =IF(AND(N22="F",O22="NO"),I22*P22,"--") -> -- | S22: =IF(N22="F",I22*P22*ROUND(M22/60,2),"--") -> -- | T22: =IF(N22="RF",I22*P22*ROUND(M22/60,2),"--") -> -- | U22: SI | V22: =IF(F22="","",SUM(Q22:T22)*IF(U22="SI",1,2)*IF(H22="500/220",0,1)) -> 201.6938
C23: 162 | D23: 300442 | E23: 2360 | F23: BALCARCE | G23: SALIDA 9 A COOP. BALCARCE | H23: 13.2 | I23: 13.097 | J23: 2016-03-16T07:30:00 | K23: 2016-03-16T10:36:00 | L23: 3.1 | M23: 186 | N23: P | O23: =IF(F23="","",IF(OR(N23="P",N23="RP"),"--","NO")) -> -- | P23: 40 | Q23: 162.4028 | R23: -- | S23: -- | T23: -- | U23: SI | V23: 162.4028
C24: 163 | D24: 300443 | E24: 2707 | F24: CHACABUCO | G24: SALIDA 4 A CHACABUCO | H24: 13.2 | I24: 13.097 | J24: 2016-03-16T07:55:00 | K24: 2016-03-16T10:38:00 | L24: 2.716666667 | M24: 163 | N24: P | O24: -- | P24: 40 | Q24: 142.49536 | R24: -- | S24: -- | T24: -- | U24: SI | V24: 142.49536
C25: 164 | D25: 300450 | E25: 2551 | F25: SUAREZ | G25: SALIDA 1 A SUAREZ | H25: 13.2 | I25: 13.097 | J25: 2016-03-16T09:48:00 | K25: 2016-03-16T16:09:00 | L25: 6.35 | M25: 381 | N25: P | O25: -- | P25: 40 | Q25: 332.6638 | R25: -- | S25: -- | T25: -- | U25: SI | V25: 332.6638
C26: 165 | D26: 300451 | E26: 2125 | F26: PERGAMINO | G26: SALIDA 2 A CRUCE | H26: 33 | I26: 13.097 | J26: 2016-03-16T09:57:00 | K26: 2016-03-16T13:28:00 | L26: 3.516666667 | M26: 211 | N26: P | O26: -- | P26: 50 | Q26: 230.5072 | R26: -- | S26: -- | T26: -- | U26: SI | V26: 230.5072
C27: 166 | D27: 300452 | E27: 2291 | F27: CHACABUCO | G27: SALIDA 2 A CHACABUCO | H27: 13.2 | I27: 13.097 | J27: 2016-03-17T07:58:00 | K27: 2016-03-17T11:04:00 | L27: 3.1 | M27: 186 | N27: P | O27: -- | P27: 40 | Q27: 162.4028 | R27: -- | S27: -- | T27: -- | U27: SI | V27: 162.4028
C28: 167 | D28: 300456 | E28: 2549 | F28: SUAREZ | G28: SALIDA A A. CORTO | H28: 33 | I28: 13.097 | J28: 2016-03-17T08:44:00 | K28: 2016-03-17T15:04:00 | L28: 6.333333333 | M28: 380 | N28: P | O28: -- | P28: 50 | Q28: 414.52005 | R28: -- | S28: -- | T28: -- | U28: SI | V28: 414.52005
C29: 168 | D29: 300457 | E29: 5463 | F29: SAN NICOLAS | G29: SALIDA ALIMENT. 20 CONESA | H29: 13.2 | I29: 13.097 | J29: 2016-03-17T09:03:00 | K29: 2016-03-17T12:36:00 | L29: 3.55 | M29: 213 | N29: P | O29: -- | P29: 40 | Q29: 185.9774 | R29: -- | S29: -- | T29: -- | U29: SI | V29: 185.9774
C30: 169 | D30: 300458 | E30: 2210 | F30: MERCEDES | G30: SALIDA 1 A MERCEDES | H30: 13.2 | I30: 13.097 | J30: 2016-03-17T09:10:00 | K30: 2016-03-17T13:53:00 | L30: 4.716666667 | M30: 283 | N30: P | O30: -- | P30: 40 | Q30: 247.27136 | R30: -- | S30: -- | T30: -- | U30: SI | V30: 247.27136
C31: 170 | D31: 300462 | E31: 2295 | F31: CHACABUCO | G31: SALIDA 8 A CHACABUCO | H31: 13.19999981 | I31: 13.097 | J31: 2016-03-18T08:10:00 | K31: 2016-03-18T11:11:00 | L31: 3.016666667 | M31: 181 | N31: P | O31: -- | P31: 40 | Q31: 158.21176 | R31: -- | S31: -- | T31: -- | U31: SI | V31: 158.21176
C32: 171 | D32: 300465 | E32: 2550 | F32: SUAREZ | G32: SALIDA A HUANGUELEN | H32: 33 | I32: 13.097 | J32: 2016-03-18T08:56:00 | K32: 2016-03-18T15:15:00 | L32: 6.316666667 | M32: 379 | N32: P | O32: -- | P32: 50 | Q32: 413.8652 | R32: -- | S32: -- | T32: -- | U32: SI | V32: 413.8652
C34: 173 | D34: 300641 | E34: 5176 | F34: MAR DEL TUYU | G34: SALIDA ALIM. TRAFO 1 | H34: 13.2 | I34: 13.097 | J34: 2016-03-21T16:43:00 | K34: 2016-03-21T17:20:00 | L34: 0.6166666666 | M34: 37 | N34: F | O34: NO | P34: 40 | Q34: -- | R34: 523.88 | S34: 324.8056 | T34: -- | U34: SI | V34: 848.6856
C36: 175 | D36: 300645 | E36: 3469 | F36: CHACABUCO | G36: SALIDA 9 A CHACABUCO | H36: 13.2 | I36: 13.097 | J36: 2016-03-22T08:43:00 | K36: 2016-03-22T12:15:00 | L36: 3.533333333 | M36: 212 | N36: P | O36: -- | P36: 40 | Q36: 184.92964 | R36: -- | S36: -- | T36: -- | U36: SI | V36: 184.92964
C37: 176 | D37: 300651 | E37: 4974 | F37: LAS PALMAS | G37: SALIDA 2 A PARQUE IND. | H37: 33 | I37: 13.097 | J37: 2016-03-22T11:02:00 | K37: 2016-03-22T13:28:00 | L37: 2.433333333 | M37: 146 | N37: P | O37: -- | P37: 50 | Q37: 159.12855 | R37: -- | S37: -- | T37: -- | U37: =IF(F37="","","SI") -> SI | V37: 159.12855
C38: 177 | D38: 300652 | E38: 2288 | F38: CHACABUCO | G38: SALIDA A RAWSON | H38: 33 | I38: 13.097 | J38: 2016-03-22T11:31:00 | K38: 2016-03-22T14:58:00 | L38: 3.45 | M38: 207 | N38: P | O38: -- | P38: 50 | Q38: 225.92325 | R38: -- | S38: -- | T38: -- | U38: SI | V38: 225.92325
C39: 178 | D39: 300655 | E39: 2289 | F39: CHACABUCO | G39: SALIDA A JUNIN | H39: 33 | I39: 13.097 | J39: 2016-03-23T08:16:00 | K39: 2016-03-23T10:58:00 | L39: 2.7 | M39: 162 | N39: P | O39: -- | P39: 50 | Q39: 176.8095 | R39: -- | S39: -- | T39: -- | U39: SI | V39: 176.8095
C40: 179 | D40: 300871 | E40: 2157 | F40: JUNIN | G40: SALIDA A VIAMONTE | H40: 33 | I40: 13.097 | J40: 2016-03-29T08:43:00 | K40: 2016-03-29T13:20:00 | L40: 4.616666667 | M40: 277 | N40: P | O40: -- | P40: 50 | Q40: 302.5407 | R40: -- | S40: -- | T40: -- | U40: SI | V40: 302.5407
I41: 13.097 | P41: 40 | Q41: -- | R41: -- | S41: -- | T41: -- | U41: =IF(F41="","","SI") -> 
C43: (²) | D43: P - PROGRAMADA ; F - FORZADA | Q43: =SUM(Q20:Q42) -> 3701.34317 | R43: =SUM(R20:R42) -> 523.88 | S43: =SUM(S20:S42) -> 324.8056 | T43: =SUM(T20:T42) -> 0 | V43: =ROUND(SUM(V20:V42),2) -> 10099.1

Sheet SA-03 (3)
B2: ='TOT-0316'!B2 -> ANEXO IV al Memorándum D.T.E.E. N° 243/ 2017
A4: ENTE NACIONAL REGULADOR
A5: DE LA ELECTRICIDAD
F8: SISTEMA DE TRANSPORTE DE ENERGÍA ELÉCTRICA POR DISTRIBUCIÓN TRONCAL - TRANSBA S.A.
F10: 2.2.- Salidas
B12: ='TOT-0316'!B14 -> Desde el 01 al 31 de Marzo de 2016
F14: Salida en 220 kV | G14: 34.93 | H14: =60*'TOT-0316'!B13 -> 60 | J14: =IF(H14=60," ",IF(H14=120," Coeficiente duplicado por tasa de falla >4 Sal. x año/100 km."," REVISAR COEFICIENTE")) -> 
F15: Salida en 132 kV o 66 kV = | G15: 17.466 | H15: =50*'TOT-0316'!B13 -> 50 | J15: =IF(H15=50," ",IF(H15=100," Coeficiente duplicado por tasa de falla >4 Sal. x año/100 km."," REVISAR COEFICIENTE")) -> 
F16: Salida en 33 kV | G16: 13.097 | H16: =50*'TOT-0316'!B13 -> 50 | J16: =IF(H16=50," ",IF(H16=100," Coeficiente duplicado por tasa de falla >4 Sal. x año/100 km."," REVISAR COEFICIENTE")) -> 
F17: Salida en 13,2 kV = | G17: 13.097 | H17: =40*'TOT-0316'!B13 -> 40 | J17: =IF(H17=40," ",IF(H17=80," Coeficiente duplicado por tasa de falla >4 Sal. x año/100 km."," REVISAR COEFICIENTE")) -> 
C18: 3 | D18: 4 | E18: 5 | F18: 6 | G18: 7 | H18: 8 | I18: 9 | J18: 10 | K18: 11 | L18: 12 | M18: 13 | N18: 14 | O18: 15 | P18: 16 | Q18: 17 | R18: 18 | S18: 19 | T18: 20 | U18: 21 | V18: 22
C19: N° | D19: INDISP | E19: ID EQUIPO | F19: ESTACIÓN TRANSFORMADORA | G19: EQUIPO | H19: U [kV] | I19: $/h | J19: Salida | K19: Entrada | L19: Hs Indisp. | M19: Minutos. Indisp. | N19: Tipo Sal.(²) | O19: AUT. | P19: K (U) | Q19: PENALIZAC. PROGRAM. | R19: PENALIZACIÓN FORZADA Por Salida hs. Restantes | T19: RESTANTE FORZADA | U19: Informó en Térm. | V19: TOTAL PENALIZAC.
V20: ='SA-03 (2)'!V43 -> 10099.1
C22: 180 | D22: 300874 | E22: 4742 | F22: JUNIN | G22: SALIDA C.T. JUNIN | H22: 13.2 | I22: =IF(H22=220,$G$14,IF(AND(H22<=132,H22>=66),$G$15,IF(AND(H22<66,H22>=33),$G$16,$G$17))) -> 13.097 | J22: 2016-03-29T09:12:00 | K22: 2016-03-29T12:14:00 | L22: =IF(F22="","",(K22-J22)*24) -> 3.033333333 | M22: =IF(F22="","",ROUND((K22-J22)*24*60,0)) -> 182 | N22: P | O22: =IF(F22="","",IF(OR(N22="P",N22="RP"),"--","NO")) -> -- | P22: =IF(H22=220,$H$14,IF(AND(H22<=132,H22>=66),$H$15,IF(AND(H22<66,H22>13.2),$H$16,$H$17))) -> 40 | Q22: =IF(N22="P",I22*P22*ROUND(M22/60,2)*0.1,"--") -> 158.73564 | R22: =IF(AND(N22="F",O22="NO"),I22*P22,"--") -> -- | S22: =IF(N22="F",I22*P22*ROUND(M22/60,2),"--") -> -- | T22: =IF(N22="RF",I22*P22*ROUND(M22/60,2),"--") -> -- | U22: =IF(F22="","","SI") -> SI | V22: =IF(F22="","",SUM(Q22:T22)*IF(U22="SI",1,2)*IF(H22="500/220",0,1)) -> 158.73564
C23: 181 | D23: 300876 | E23: 2555 | F23: SUAREZ | G23: SALIDA 5 A SUAREZ | H23: 13.2 | I23: 13.097 | J23: 2016-03-29T09:34:00 | K23: 2016-03-29T15:52:00 | L23: 6.3 | M23: 378 | N23: P | O23: -- | P23: 40 | Q23: 330.0444 | R23: -- | S23: -- | T23: -- | U23: SI | V23: 330.0444
C24: 182 | D24: 300879 | E24: 2165 | F24: JUNIN | G24: ALIMENT. 7 A JUNIN | H24: 13.2 | I24: 13.097 | J24: 2016-03-29T12:40:00 | K24: 2016-03-29T15:24:00 | L24: 2.733333333 | M24: 164 | N24: P | O24: -- | P24: 40 | Q24: 143.01924 | R24: -- | S24: -- | T24: -- | U24: SI | V24: 143.01924
C25: 183 | D25: 300890 | E25: 4568 | F25: JUNIN | G25: ALIMENT. 8 A JUNIN | H25: 13.2 | I25: 13.097 | J25: 2016-03-30T09:08:00 | K25: 2016-03-30T14:28:00 | L25: 5.333333333 | M25: 320 | N25: P | O25: -- | P25: 40 | Q25: 279.22804 | R25: -- | S25: -- | T25: -- | U25: SI | V25: 279.22804
C26: 184 | D26: 300893 | E26: 2556 | F26: SUAREZ | G26: SALIDA A LAS COLONIAS | H26: 13.2 | I26: 13.097 | J26: 2016-03-30T09:21:00 | K26: 2016-03-30T15:54:00 | L26: 6.55 | M26: 393 | N26: P | O26: -- | P26: 40 | Q26: 343.1414 | R26: -- | S26: -- | T26: -- | U26: SI | V26: 343.1414
C27: 185 | D27: 300899 | E27: 2379 | F27: BARKER | G27: SALIDA 2 A LOMA NEGRA | H27: 33 | I27: 13.097 | J27: 2016-03-31T09:20:00 | K27: 2016-03-31T12:04:00 | L27: 2.733333333 | M27: 164 | N27: P | O27: -- | P27: 50 | Q27: 178.77405 | R27: -- | S27: -- | T27: -- | U27: SI | V27: 178.77405
C28: 186 | D28: 300900 | E28: 2554 | F28: SUAREZ | G28: SALIDA 4 A SUAREZ | H28: 13.2 | I28: 13.097 | J28: 2016-03-31T09:26:00 | K28: 2016-03-31T16:53:00 | L28: 7.45 | M28: 447 | N28: P | O28: -- | P28: 40 | Q28: 390.2906 | R28: -- | S28: -- | T28: -- | U28: SI | V28: 390.2906
C29: 187 | D29: 300901 | E29: 2217 | F29: MERCEDES | G29: SALIDA 8 A MERCEDES | H29: 13.2 | I29: 13.097 | J29: 2016-03-31T09:40:00 | K29: 2016-03-31T16:23:00 | L29: 6.716666667 | M29: 403 | N29: P | O29: -- | P29: 40 | Q29: 352.04736 | R29: -- | S29: -- | T29: -- | U29: SI | V29: 352.04736
C30: 188 | D30: 300902 | E30: 2129 | F30: PERGAMINO | G30: ALIMENT. 2 A COOP. PERGAMINO | H30: 13.2 | I30: 13.097 | J30: 2016-03-31T11:47:00 | K30: 2016-03-31T14:40:00 | L30: 2.883333333 | M30: 173 | N30: P | O30: -- | P30: 40 | Q30: 150.87744 | R30: -- | S30: -- | T30: -- | U30: SI | V30: 150.87744
I31: 13.097 | P31: 40 | Q31: -- | R31: -- | S31: -- | T31: --
I32: 13.097 | P32: 40 | Q32: -- | R32: -- | S32: -- | T32: --
I33: 13.097 | P33: 40 | Q33: -- | R33: -- | S33: -- | T33: --
I34: 13.097 | P34: 40 | Q34: -- | R34: -- | S34: -- | T34: --
I35: 13.097 | P35: 40 | Q35: -- | R35: -- | S35: -- | T35: --
I36: 13.097 | P36: 40 | Q36: -- | R36: -- | S36: -- | T36: --
I37: 13.097 | P37: 40 | Q37: -- | R37: -- | S37: -- | T37: --
I38: 13.097 | P38: 40 | Q38: -- | R38: -- | S38: -- | T38: --
I39: 13.097 | P39: 40 | Q39: -- | R39: -- | S39: -- | T39: -- | U39: =IF(F39="","","SI") -> 
I40: 13.097 | P40: 40 | Q40: -- | R40: -- | S40: -- | T40: --
I41: 13.097 | P41: 40 | Q41: -- | R41: -- | S41: -- | T41: --
C43: (²) | D43: P - PROGRAMADA | Q43: =SUM(Q20:Q42) -> 2326.15817 | R43: =SUM(R20:R42) -> 0 | S43: =SUM(S20:S42) -> 0 | T43: =SUM(T20:T42) -> 0 | V43: =ROUND(SUM(V20:V42),2) -> 12425.26

Sheet RE-03 (1)
B2: ='TOT-0316'!B2 -> ANEXO IV al Memorándum D.T.E.E. N° 243/ 2017
A4: ENTE NACIONAL REGULADOR
A5: DE LA ELECTRICIDAD
F8: SISTEMA DE TRANSPORTE DE ENERGÍA ELÉCTRICA POR DISTRIBUCIÓN TRONCAL - TRANSBA S.A.
F10: 3.- REACTIVA
F12: 3.- Equipamiento propio Res. 01_03
B14: ='TOT-0316'!B14 -> Desde el 01 al 31 de Marzo de 2016
F16: Coeficiente de penalización por salida forzada = | J16: =60*'TOT-0316'!B13 -> 60 | L16: =IF(J16=60," ",IF(J16=120," Coeficiente duplicado por tasa de falla >4 Sal. x año/100 km."," REVISAR COEFICIENTE")) -> 
C17: 3 | D17: 4 | E17: 5 | F17: 6 | G17: 7 | H17: 8 | I17: 9 | J17: 10 | K17: 11 | L17: 12 | M17: 13 | N17: 14 | O17: 15 | P17: 16 | Q17: 17 | R17: 18 | S17: 19 | T17: 20 | U17: 21 | V17: 22 | W17: 23 | X17: 24 | Y17: 25 | Z17: 26 | AA17: 27 | AB17: 28 | AC17: 29 | AD17: 30
C18: N° | D18: INDISP | E18: ID EQUIPO | F18: ESTACIÓN TRANSFORMADORA | G18: EQUIPO | H18: POT. [MVA] | I18: MVA $ = | J18: U [kV] | K18: $/h | L18: Salida | M18: Entrada | N18: Hs Indisp. | O18: Minutos. Indisp. | P18: Tipo Sal.(²) | Q18: AUT. | R18: C.R. % | S18: E.N.S. | T18: K (P y ENS) | U18: PENALIZ. PROGRAM. | V18: REDUCC. PROGRAM. | W18: PENALIZACIÓN FORZADA Por Salida hs. Restantes | Y18: REDUCC. FORZADA Por Salida hs. Restantes | AA18: RESTANTE FORZADA | AB18: REDUCC. RESTANTE | AC18: Informó en Térm. | AD18: TOTAL PENALIZAC.
K20: =H20*I20 -> 0 | N20: =IF(F20="","",(M20-L20)*24) ->  | O20: =IF(F20="","",ROUND((M20-L20)*24*60,0)) ->  | T20: =$J$16*IF(OR(P20="P",P20="RP"),0.1,1)*IF(S20="SI",1,0.1) -> 6 | U20: =IF(P20="P",K20*T20*ROUND(O20/60,2),"--") -> -- | V20: =IF(P20="RP",K20*T20*ROUND(O20/60,2)*R20/100,"--") -> -- | W20: =IF(AND(P20="F",Q20="NO"),K20*T20,"--") -> -- | X20: =IF(P20="F",K20*T20*ROUND(O20/60,2),"--") -> -- | Y20: =IF(AND(P20="R",Q20="NO"),K20*T20*R20/100,"--") -> -- | Z20: =IF(P20="R",K20*T20*ROUND(O20/60,2)*R20/100,"--") -> -- | AA20: =IF(P20="RF",K20*T20*ROUND(O20/60,2),"--") -> -- | AB20: =IF(P20="RR",K20*T20*ROUND(O20/60,2)*R20/100,"--") -> -- | AD20: =IF(F20="","",SUM(U20:AB20)*IF(AC20="SI",1,2)) -> 
C21: 189 | D21: 299950 | E21: 4448 | F21: 9 DE JULIO | G21: K1NJ | H21: 1.5 | I21: 5.878 | J21: 13.19999981 | K21: =H21*I21 -> 8.817 | L21: 2016-03-02T09:49:00 | M21: 2016-03-02T12:08:00 | N21: 2.316666667 | O21: 139 | P21: P | Q21: =IF(F21="","",IF(OR(P21="P",P21="RP"),"--","NO")) -> -- | R21: =IF(F21="","","--") -> -- | S21: =IF(F21="","","NO") -> NO | T21: 0.6 | U21: 12.273264 | V21: -- | W21: -- | X21: -- | Y21: -- | Z21: -- | AA21: -- | AB21: -- | AC21: SI | AD21: 12.273264
C22: 190 | D22: 300449 | E22: 4456 | F22: CHACABUCO | G22: K1CB | H22: 3 | I22: 6.287 | J22: 13.19999981 | K22: =H22*I22 -> 18.861 | L22: 2016-03-16T09:41:00 | M22: 2016-03-16T15:15:00 | N22: =IF(F22="","",(M22-L22)*24) -> 5.566666667 | O22: =IF(F22="","",ROUND((M22-L22)*24*60,0)) -> 334 | P22: P | Q22: =IF(F22="","",IF(OR(P22="P",P22="RP"),"--","NO")) -> -- | R22: =IF(F22="","","--") -> -- | S22: =IF(F22="","","NO") -> NO | T22: =$J$16*IF(OR(P22="P",P22="RP"),0.1,1)*IF(S22="SI",1,0.1) -> 0.6 | U22: =IF(P22="P",K22*T22*ROUND(O22/60,2),"--") -> 63.033462 | V22: =IF(P22="RP",K22*T22*ROUND(O22/60,2)*R22/100,"--") -> -- | W22: =IF(AND(P22="F",Q22="NO"),K22*T22,"--") -> -- | X22: =IF(P22="F",K22*T22*ROUND(O22/60,2),"--") -> -- | Y22: =IF(AND(P22="R",Q22="NO"),K22*T22*R22/100,"--") -> -- | Z22: =IF(P22="R",K22*T22*ROUND(O22/60,2)*R22/100,"--") -> -- | AA22: =IF(P22="RF",K22*T22*ROUND(O22/60,2),"--") -> -- | AB22: =IF(P22="RR",K22*T22*ROUND(O22/60,2)*R22/100,"--") -> -- | AC22: SI | AD22: =IF(F22="","",SUM(U22:AB22)*IF(AC22="SI",1,2)) -> 63.033462
C23: 191 | D23: 300453 | E23: 4457 | F23: CHACABUCO | G23: K3CB | H23: 3 | I23: 6.287 | J23: 13.19999981 | K23: 18.861 | L23: 2016-03-17T08:16:00 | M23: 2016-03-17T13:20:00 | N23: 5.066666667 | O23: 304 | P23: P | Q23: =IF(F23="","",IF(OR(P23="P",P23="RP"),"--","NO")) -> -- | R23: =IF(F23="","","--") -> -- | S23: =IF(F23="","","NO") -> NO | T23: 0.6 | U23: 57.375162 | V23: -- | W23: -- | X23: -- | Y23: -- | Z23: -- | AA23: -- | AB23: -- | AC23: SI | AD23: 57.375162
C24: 192 | D24: 300468 | E24: 4451 | F24: MERCEDES | G24: K3MD | H24: 3 | I24: 4.874 | J24: 13.19999981 | K24: 14.622 | L24: 2016-03-18T09:49:00 | M24: 2016-03-18T12:40:00 | N24: 2.85 | O24: 171 | P24: P | Q24: -- | R24: -- | S24: NO | T24: 0.6 | U24: 25.00362 | V24: -- | W24: -- | X24: -- | Y24: -- | Z24: -- | AA24: -- | AB24: -- | AC24: SI | AD24: 25.00362
C25: 193 | D25: 300471 | E25: 4450 | F25: MERCEDES | G25: K1MD | H25: 1.5 | I25: 4.874 | J25: 13.19999981 | K25: 7.311 | L25: 2016-03-18T12:41:00 | M25: 2016-03-18T15:42:00 | N25: 3.016666667 | O25: 181 | P25: P | Q25: -- | R25: -- | S25: NO | T25: 0.6 | U25: 13.247532 | V25: -- | W25: -- | X25: -- | Y25: -- | Z25: -- | AA25: -- | AB25: -- | AC25: SI | AD25: 13.247532
K26: 0 | T26: 6 | U26: -- | V26: -- | W26: -- | X26: -- | Y26: -- | Z26: -- | AA26: -- | AB26: -- | AC26: =IF(F26="","","SI") -> 
K27: 0 | T27: 6 | U27: -- | V27: -- | W27: -- | X27: -- | Y27: -- | Z27: -- | AA27: -- | AB27: --
K28: 0 | T28: 6 | U28: -- | V28: -- | W28: -- | X28: -- | Y28: -- | Z28: -- | AA28: -- | AB28: --
K29: =H29*I29 -> 0 | T29: 6 | U29: -- | V29: -- | W29: -- | X29: -- | Y29: -- | Z29: -- | AA29: -- | AB29: --
K30: =H30*I30 -> 0 | T30: 6 | U30: -- | V30: -- | W30: -- | X30: -- | Y30: -- | Z30: -- | AA30: -- | AB30: --
K31: 0 | T31: 6 | U31: -- | V31: -- | W31: -- | X31: -- | Y31: -- | Z31: -- | AA31: -- | AB31: --
K32: 0 | T32: 6 | U32: -- | V32: -- | W32: -- | X32: -- | Y32: -- | Z32: -- | AA32: -- | AB32: --
K33: 0 | T33: 6 | U33: -- | V33: -- | W33: -- | X33: -- | Y33: -- | Z33: -- | AA33: -- | AB33: --
K34: 0 | T34: 6 | U34: -- | V34: -- | W34: -- | X34: -- | Y34: -- | Z34: -- | AA34: -- | AB34: --
K35: 0 | T35: 6 | U35: -- | V35: -- | W35: -- | X35: -- | Y35: -- | Z35: -- | AA35: -- | AB35: --
K36: 0 | T36: 6 | U36: -- | V36: -- | W36: -- | X36: -- | Y36: -- | Z36: -- | AA36: -- | AB36: --
K37: 0 | T37: 6 | U37: -- | V37: -- | W37: -- | X37: -- | Y37: -- | Z37: -- | AA37: -- | AB37: --
K38: 0 | T38: 6 | U38: -- | V38: -- | W38: -- | X38: -- | Y38: -- | Z38: -- | AA38: -- | AB38: --
K39: 0 | T39: 6 | U39: -- | V39: -- | W39: -- | X39: -- | Y39: -- | Z39: -- | AA39: -- | AB39: --
K40: 0 | T40: 6 | U40: -- | V40: -- | W40: -- | X40: -- | Y40: -- | Z40: -- | AA40: -- | AB40: --
K41: 0 | T41: 6 | U41: -- | V41: -- | W41: -- | X41: -- | Y41: -- | Z41: -- | AA41: -- | AB41: --
K42: 0 | T42: 6 | U42: -- | V42: -- | W42: -- | X42: -- | Y42: -- | Z42: -- | AA42: -- | AB42: --
C44: (²) | D44: P - PROGRAMADA | U44: =SUM(U19:U43) -> 170.93304 | V44: =SUM(V19:V43) -> 0 | W44: =SUM(W19:W43) -> 0 | X44: =SUM(X21:X43) -> 0 | Y44: =SUM(Y19:Y43) -> 0 | Z44: =SUM(Z21:Z43) -> 0 | AA44: =SUM(AA19:AA43) -> 0 | AB44: =SUM(AB21:AB43) -> 0 | AD44: =ROUND(SUM(AD19:AD43),2) -> 170.93

Sheet DATO
A1: Mes | B1: Mes | C1: Dia | D1: Año
A2: enero | B2: 01 | C2: 31 | D2: 2006
A3: febrero | B3: 02 | C3: =IF(MOD(E14,4)=0,29,28) -> 29 | D3: =+D2+1 -> 2007
A4: marzo | B4: 03 | C4: 31 | D4: 2008
A5: abril | B5: 04 | C5: 30 | D5: 2009
A6: mayo | B6: 05 | C6: 31 | D6: 2010
A7: junio | B7: 06 | C7: 30 | D7: 2011
A8: julio | B8: 07 | C8: 31 | D8: 2012
A9: agosto | B9: 08 | C9: 31 | D9: 2013
A10: septiembre | B10: 09 | C10: 30 | D10: 2014
A11: octubre | B11: 10 | C11: 31 | D11: 2015
A12: noviembre | B12: 11 | C12: 30 | D12: 2016
A13: diciembre | B13: 12 | C13: 31 | I13: Total
A14: 11 | B14: 3 | C14: =CELL("CONTENIDO",OFFSET(A1,B14,0)) -> marzo | D14: =CELL("CONTENIDO",OFFSET(C1,B14,0)) -> 31 | E14: =CELL("CONTENIDO",OFFSET(D1,A14,0)) -> 2016 | F14: ="Desde el 01 al " & D14 & " de " & C14 & " de " & E14 -> Desde el 01 al 31 de marzo de 2016 | G14: =CELL("CONTENIDO",OFFSET(B1,B14,0)) -> 03 | H14: =RIGHT(E14,2) -> 16 | I14: B14
B15: ="\\rugor\files\Transporte\Transporte\AA PROCESO AUT ARCHIVOS J\TRANSBA\" &E14 -> \\rugor\files\Transporte\Transporte\AA PROCESO AUT ARCHIVOS J\TRANSBA\2016 | G15: ="J"&G14&H14&"TBA" -> J0316TBA
B16: ="\\rugor\files\Transporte\transporte\AA PROCESO AUT\INTERCAMBIO\" &H14&G14 -> \\rugor\files\Transporte\transporte\AA PROCESO AUT\INTERCAMBIO\1603
A17: Hoja | B17: FilaInicio | C17: FilasPlantilla | D17: Columnas | E17: NombreHoja | F17: OrigenDeDatos | G17: Col00 | H17: Col01 | I17: Col02 | J17: Col03 | K17: Col04 | L17: Col05 | M17: Col06 | N17: Col07 | O17: Col08 | P17: Col09 | Q17: Col10 | R17: Col11 | S17: Col12 | T17: Col13 | U17: Col14 | V17: Col15 | W17: FILHTOTAL | X17: COLHTOTAL | Y17: FILHCALC | Z17: COLHCALC | AA17: FILTRANSP | AB17: COLTRANSP | AC17: COL TSAL
A18: MODELO L | B18: 21 | C18: 20 | D18: 12 | E18: ="LI-" & $G$14 -> LI-03 | F18: TRANSBA_INDISPONIBILIDADES_LINEAS_TRANSBA.XLS | G18: 3 | H18: 5 | I18: 4 | J18: 6 | K18: 7 | L18: 8 | M18: 9 | N18: 11 | O18: 12 | P18: 15 | Q18: 0 | R18: 28 | S18: 16 | T18: 0 | U18: 0 | V18: 0 | W18: 18 | X18: 9 | Y18: 42 | Z18: 29 | AA18: 19 | AB18: 29 | AC18: 15
A19: MODELO T | B19: 22 | C19: 20 | D19: 13 | E19: ="T-" & $G$14 -> T-03 | F19: TRANSBA_INDISPONIBILIDADES_TRAFOS_TRANSBA.XLS | G19: 3 | H19: 5 | I19: 4 | J19: 6 | K19: 7 | L19: 8 | M19: 9 | N19: 11 | O19: 12 | P19: 15 | Q19: 16 | R19: 18 | S19: 28 | T19: 17 | U19: 0 | V19: 0 | W19: 22 | X19: 9 | Y19: 43 | Z19: 29 | AA19: 20 | AB19: 29 | AC19: 15
A20: MODELO S | B20: 22 | C20: 20 | D20: 10 | E20: ="SA-" & $G$14 -> SA-03 | F20: TRANSBA_INDISPONIBILIDADES_SALIDAS_TRANSBA.XLS | G20: 3 | H20: 5 | I20: 4 | J20: 6 | K20: 7 | L20: 8 | M20: 10 | N20: 11 | O20: 14 | P20: 15 | Q20: 21 | R20: 0 | S20: 0 | T20: 0 | U20: 0 | V20: 0 | W20: 24 | X20: 9 | Y20: 43 | Z20: 22 | AA20: 20 | AB20: 22 | AC20: 14
A21: MODELO R | B21: 21 | C21: 20 | D21: 12 | E21: ="RE-" & $G$14 -> RE-03 | F21: TRANSBA_INDISPONIBILIDADES_REACTIVOS_TRANSBA.XLS | G21: 3 | H21: 5 | I21: 4 | J21: 6 | K21: 7 | L21: 8 | M21: 9 | N21: 10 | O21: 12 | P21: 13 | Q21: 16 | R21: 17 | S21: 29 | T21: 18 | U21: 0 | V21: 0 | W21: 26 | X21: 9 | Y21: 43 | Z21: 30 | AA21: 20 | AB21: 30 | AC21: 16
A22: MODELO VST | B22: 19 | C22: 24 | D22: 4 | E22: ="CAUSAS-VST-" & $G$14 -> CAUSAS-VST-03 | F22: TRANSBA_CAUSAS_VST.XLS | G22: 3 | H22: 4 | I22: 5 | J22: 6 | K22: 7 | L22: 0 | M22: 0 | N22: 0 | O22: 0 | P22: 0 | Q22: 0 | R22: 0 | S22: 0 | T22: 0 | U22: 0 | V22: 0 | W22: 999 | X22: 999 | Y22: 0 | Z22: 0 | AA22: 0 | AB22: 0 | AC22: 0
